Department family,Entity,Date,Expense type,Expense area,Supplier,Transaction number,Amount,Description
MOJ,LAA,03/06/19,EXP - MISCELLANEOUS EXPENDITURE - Litigator,Central Funds,SMITH PARTNERSHIP,M1116014/127735,"26,514.01",Legal fees
MOJ,LAA,03/06/19,EXP - PURCHASE OF GOODS/SERVICES - OTHER - Central Funds - Other,Central Funds,JD SPICER ZEB,M1116282/127684,"28,234.78",Court costs
MOJ,LAA,03/06/19,EXP - MISCELLANEOUS EXPENDITURE - Litigator,Central Funds,IMRAN KHAN AND PARTNERS,M1097044/127417,"29,359.13",Legal fees
MOJ,LAA,05/06/19,Civil Representation,LEGAL AID FUND,BIRNBERG PEIRCE LTD,1722740:152502403,"25,034.29",Legal Aid civil representation
MOJ,LAA,05/06/19,Civil Representation,LEGAL AID FUND,REBEKAH M WILSON,1722552:3000002555400025,"25,175.88",Legal Aid civil representation
MOJ,LAA,05/06/19,Higher Crime,LEGAL AID FUND,STOKOE PARTNERSHIP,1724423:152516473,"25,320.24",Legal Aid higher crime
MOJ,LAA,05/06/19,Civil Representation,LEGAL AID FUND,ANITA GESER,1722629:3000001246090022,"25,467.67",Legal Aid civil representation
MOJ,LAA,05/06/19,Higher Crime,LEGAL AID FUND,KATE CHIDGEY,1720954:152524604,"25,476.00",Legal Aid higher crime
MOJ,LAA,05/06/19,Higher Crime,LEGAL AID FUND,ROBERT A P WOODCOCK QC,1720985:152505995,"25,784.40",Legal Aid higher crime
MOJ,LAA,05/06/19,Civil Representation,LEGAL AID FUND,JOE EGAN SOLICITORS LTD,1722830:3000002389660021,"25,944.00",Legal Aid civil representation
MOJ,LAA,05/06/19,Civil Representation,LEGAL AID FUND,STEFANO NUVOLONI QC,1722557:3000003337960006,"25,967.52",Legal Aid civil representation
MOJ,LAA,05/06/19,Civil Representation,LEGAL AID FUND,MKB SOLICITORS LLP,1721506:152501163,"25,986.45",Legal Aid civil representation
MOJ,LAA,05/06/19,Higher Crime,LEGAL AID FUND,DAVID R SCUTT,1722602:152496542,"26,101.37",Legal Aid higher crime
MOJ,LAA,05/06/19,Higher Crime,LEGAL AID FUND,GILLIAN BATTS,1720855:152506140,"26,760.00",Legal Aid higher crime
MOJ,LAA,05/06/19,Civil Representation,LEGAL AID FUND,SMITH & GRAHAM,1721590:3000002526680009,"26,817.99",Legal Aid civil representation
MOJ,LAA,05/06/19,Higher Crime,LEGAL AID FUND,CHARLES I SHERRARD,1721121:152506861,"26,820.00",Legal Aid higher crime
MOJ,LAA,05/06/19,Higher Crime,LEGAL AID FUND,KINGSMAN SOLICITORS LTD,1720477:152526432,"26,893.52",Legal Aid higher crime
MOJ,LAA,05/06/19,Civil Representation,LEGAL AID FUND,DUNCAN LEWIS SOLICITORS  LTD,1722815:152541880,"27,044.49",Legal Aid civil representation
MOJ,LAA,05/06/19,Civil Representation,LEGAL AID FUND,IRWIN MITCHELL LLP,1721561:3000002376360013,"27,050.96",Legal Aid civil representation
MOJ,LAA,05/06/19,Civil Representation,LEGAL AID FUND,CHARLOTTE H G WORSLEY,1722513:3000003295980016,"27,175.20",Legal Aid civil representation
MOJ,LAA,05/06/19,Higher Crime,LEGAL AID FUND,ELLIOT MATHER LLP,1722907:152546649,"27,353.04",Legal Aid higher crime
MOJ,LAA,05/06/19,Civil Representation,LEGAL AID FUND,SCUTT BEAUMONT SOLICITORS LTD,1724088:3000000450470016,"27,572.64",Legal Aid civil representation
MOJ,LAA,05/06/19,Civil Representation,LEGAL AID FUND,HMA SOLICITORS,1724046:152554138,"27,576.55",Legal Aid civil representation
MOJ,LAA,05/06/19,Higher Crime,LEGAL AID FUND,TRAYMANS LLP SOLICITORS,1721558:152506742,"27,926.53",Legal Aid higher crime
MOJ,LAA,05/06/19,Higher Crime,LEGAL AID FUND,MUSA PATELS SOLICITORS,1722859:152515976,"27,972.91",Legal Aid higher crime
MOJ,LAA,05/06/19,Civil Representation,LEGAL AID FUND,JWP SOLICITORS,1723385:3000004772230009,"27,983.76",Legal Aid civil representation
MOJ,LAA,05/06/19,Higher Crime,LEGAL AID FUND,DORIAN LOVELL-PANK QC,1720667:152505886,"28,200.00",Legal Aid higher crime
MOJ,LAA,05/06/19,Civil Representation,LEGAL AID FUND,AVADIS & CO SOLICITORS,1721455:3000003472680008,"28,254.44",Legal Aid civil representation
MOJ,LAA,05/06/19,Higher Crime,LEGAL AID FUND,DAVID HAROUNOFF,1722604:152505985,"28,410.00",Legal Aid higher crime
MOJ,LAA,05/06/19,Civil Representation,LEGAL AID FUND,ROBINSONS SOLICITORS.,1721411:3000003821590039,"28,478.99",Legal Aid civil representation
MOJ,LAA,05/06/19,Civil Representation,LEGAL AID FUND,MICHAEL TURNER QC,1721999:3000002555400026,"28,663.48",Legal Aid civil representation
MOJ,LAA,05/06/19,Civil Representation,LEGAL AID FUND,MICHELLE CHRISTIE,1722546:3000003980000028,"28,663.68",Legal Aid civil representation
MOJ,LAA,05/06/19,Higher Crime,LEGAL AID FUND,SAHOTA & SAHOTA SOLICITORS,1721960:152547728,"28,813.57",Legal Aid higher crime
MOJ,LAA,05/06/19,Civil Representation,LEGAL AID FUND,SARAH JENNINGS,1722304:3000004435040008,"29,073.28",Legal Aid civil representation
MOJ,LAA,05/06/19,Civil Representation,LEGAL AID FUND,TRACY LAKIN,1722553:3000003461300004,"29,073.60",Legal Aid civil representation
MOJ,LAA,05/06/19,Civil Representation,LEGAL AID FUND,JOHNSON ASTILLS,1721462:3000002643770026,"29,757.19",Legal Aid civil representation
MOJ,LAA,05/06/19,Higher Crime,LEGAL AID FUND,M K LAW SOLICITORS LTD,1721241:152497066,"29,822.13",Legal Aid higher crime
MOJ,LAA,05/06/19,Higher Crime,LEGAL AID FUND,DANIEL O JONES,1722590:152506071,"29,856.00",Legal Aid higher crime
MOJ,LAA,05/06/19,Higher Crime,LEGAL AID FUND,MARK R TRAFFORD QC,1721088:152554218,"29,867.04",Legal Aid higher crime
MOJ,LAA,05/06/19,Higher Crime,LEGAL AID FUND,COBLEYS SOLICITORS LTD,1724140:152547136,"29,884.85",Legal Aid higher crime
MOJ,LAA,05/06/19,Civil Representation,LEGAL AID FUND,BRENDAN FLEMING SOLICITORS,1721660:3000002375170016,"30,105.95",Legal Aid civil representation
MOJ,LAA,05/06/19,Civil Representation,LEGAL AID FUND,BDH SOLICITORS LTD,1724360:3000003801520011,"30,363.67",Legal Aid civil representation
MOJ,LAA,05/06/19,Higher Crime,LEGAL AID FUND,L T LAW,1721370:152525770,"31,062.47",Legal Aid higher crime
MOJ,LAA,05/06/19,Higher Crime,LEGAL AID FUND,NOBLE SOLICITORS,1721490:152497378,"31,665.00",Legal Aid higher crime
MOJ,LAA,05/06/19,Civil Representation,LEGAL AID FUND,HOSSEIN ZAHIR,1720726:3000001699380004,"31,856.24",Legal Aid civil representation
MOJ,LAA,05/06/19,Higher Crime,LEGAL AID FUND,SHAFI SOLICITORS LLP,1723511:152547551,"32,366.03",Legal Aid higher crime
MOJ,LAA,05/06/19,Higher Crime,LEGAL AID FUND,FIONA H ROBERTSON,1721049:152497043,"32,370.00",Legal Aid higher crime
MOJ,LAA,05/06/19,Higher Crime,LEGAL AID FUND,LIBERTY LAW SOLICITORS LTD,1722726:152547809,"32,687.56",Legal Aid higher crime
MOJ,LAA,05/06/19,Higher Crime,LEGAL AID FUND,MAURICE ANDREWS SOLICITORS,1724279:152496572,"33,016.06",Legal Aid higher crime
MOJ,LAA,05/06/19,Civil Representation,LEGAL AID FUND,A & N CARE SOLICITORS,1723472:3000002795950042,"33,105.84",Legal Aid civil representation
MOJ,LAA,05/06/19,Higher Crime,LEGAL AID FUND,TEESSIDE LAW LTD,1720611:152516283,"33,230.19",Legal Aid higher crime
MOJ,LAA,05/06/19,Civil Representation,LEGAL AID FUND,KARL J ROWLEY,1721162:3000002693890018,"33,436.80",Legal Aid civil representation
MOJ,LAA,05/06/19,Higher Crime,LEGAL AID FUND,ROSSANO SCAMARDELLA,1721111:152547612,"33,474.34",Legal Aid higher crime
MOJ,LAA,05/06/19,Higher Crime,LEGAL AID FUND,SVS SOLICITORS,1724041:152516982,"33,714.01",Legal Aid higher crime
MOJ,LAA,05/06/19,Higher Crime,LEGAL AID FUND,PETER D WRIGHT QC,1722368:152506936,"33,720.00",Legal Aid higher crime
MOJ,LAA,05/06/19,Higher Crime,LEGAL AID FUND,STEWART BEGUM SOLICITORS LTD,1724066:152495870,"34,016.52",Legal Aid higher crime
MOJ,LAA,05/06/19,Higher Crime,LEGAL AID FUND,WALSH SOLICITORS LTD,1723340:152495954,"34,311.85",Legal Aid higher crime
MOJ,LAA,05/06/19,Higher Crime,LEGAL AID FUND,PETHERBRIDGE BASSRA SOLICITORS LTD,1723199:152505849,"35,362.34",Legal Aid higher crime
MOJ,LAA,05/06/19,Higher Crime,LEGAL AID FUND,JONAS MILNER,1723621:152547891,"35,874.00",Legal Aid higher crime
MOJ,LAA,05/06/19,Civil Representation,LEGAL AID FUND,VANESSA V MEACHIN QC,1723739:3000003786600015,"37,422.00",Legal Aid civil representation
MOJ,LAA,05/06/19,Civil Representation,LEGAL AID FUND,JWP SOLICITORS,1723385:3000005138270006,"37,705.01",Legal Aid civil representation
MOJ,LAA,05/06/19,Civil Representation,LEGAL AID FUND,HOGANS SOLICITORS LTD,1724134:3000003183850023,"37,778.40",Legal Aid civil representation
MOJ,LAA,05/06/19,Higher Crime,LEGAL AID FUND,MANN & CO SOLICITORS LTD,1722825:152507313,"39,620.95",Legal Aid higher crime
MOJ,LAA,05/06/19,Legal Help,LEGAL AID FUND,PARAGON LAW LTD,1721315:152554230,"40,000.00",Legal Aid legal help
MOJ,LAA,05/06/19,Civil Representation,LEGAL AID FUND,SWITALSKI'S SOLICITORS LTD,1722869:3000004411210011,"40,263.60",Legal Aid civil representation
MOJ,LAA,05/06/19,Higher Crime,LEGAL AID FUND,ALEXANDER JOHNSON,1721611:152517244,"41,241.18",Legal Aid higher crime
MOJ,LAA,05/06/19,Higher Crime,LEGAL AID FUND,MIDDLEWEEKS LEGAL LTD,1722957:152546412,"41,606.88",Legal Aid higher crime
MOJ,LAA,05/06/19,Civil Representation,LEGAL AID FUND,VANESSA V MEACHIN QC,1723739:3000004435040009,"42,541.20",Legal Aid civil representation
MOJ,LAA,05/06/19,Higher Crime,LEGAL AID FUND,MORGAN CULLEN & BALL LTD,1722088:152506710,"43,232.24",Legal Aid higher crime
MOJ,LAA,05/06/19,Higher Crime,LEGAL AID FUND,LAW 24,1721959:152505952,"44,074.54",Legal Aid higher crime
MOJ,LAA,05/06/19,Higher Crime,LEGAL AID FUND,ELLIOTT STERN SOLICITORS,1722741:152506043,"44,542.48",Legal Aid higher crime
MOJ,LAA,05/06/19,Higher Crime,LEGAL AID FUND,BHATIA BEST LTD,1724284:152516382,"46,235.57",Legal Aid higher crime
MOJ,LAA,05/06/19,Higher Crime,LEGAL AID FUND,ONE LEGAL SERVICES LTD,1720545:152516155,"46,346.22",Legal Aid higher crime
MOJ,LAA,05/06/19,Higher Crime,LEGAL AID FUND,MCCAULEY-SLOWE SOLICITORS,1723063:152506233,"47,493.85",Legal Aid higher crime
MOJ,LAA,05/06/19,Higher Crime,LEGAL AID FUND,ADAM V S KANE,1722341:152546586,"48,172.01",Legal Aid higher crime
MOJ,LAA,05/06/19,Civil Representation,LEGAL AID FUND,KARL J ROWLEY,1721162:3000002760430003,"49,054.21",Legal Aid civil representation
MOJ,LAA,05/06/19,Higher Crime,LEGAL AID FUND,KANGS SOLICITORS,1722978:152547710,"49,729.07",Legal Aid higher crime
MOJ,LAA,05/06/19,Civil Representation,LEGAL AID FUND,ELLIOT MATHER LLP,1722906:3000001079400006,"49,779.98",Legal Aid civil representation
MOJ,LAA,05/06/19,Higher Crime,LEGAL AID FUND,M K LAW SOLICITORS LTD,1723492:152517176,"50,023.55",Legal Aid higher crime
MOJ,LAA,05/06/19,Higher Crime,LEGAL AID FUND,ELLIOT MATHER LLP,1723456:152507814,"50,196.08",Legal Aid higher crime
MOJ,LAA,05/06/19,Higher Crime,LEGAL AID FUND,M B LAW LTD,1723223:152497406,"50,348.62",Legal Aid higher crime
MOJ,LAA,05/06/19,Civil Representation,LEGAL AID FUND,MCCORMACKS LAW,1724274:3000001911790001,"50,365.46",Legal Aid civil representation
MOJ,LAA,05/06/19,Higher Crime,LEGAL AID FUND,G T STEWART LTD,1724070:152546872,"51,781.14",Legal Aid higher crime
MOJ,LAA,05/06/19,Higher Crime,LEGAL AID FUND,LIBERTY LAW SOLICITORS LTD,1722726:152547955,"52,435.46",Legal Aid higher crime
MOJ,LAA,05/06/19,Higher Crime,LEGAL AID FUND,LIBERTY LAW SOLICITORS LTD,1722726:152546734,"52,485.47",Legal Aid higher crime
MOJ,LAA,05/06/19,Civil Representation,LEGAL AID FUND,BRETHERTON LAW LTD,1724261:152466845,"52,710.17",Legal Aid civil representation
MOJ,LAA,05/06/19,Higher Crime,LEGAL AID FUND,GAVIN D IRWIN,1723659:152495918,"52,914.00",Legal Aid higher crime
MOJ,LAA,05/06/19,Higher Crime,LEGAL AID FUND,BIRDS SOLICITORS LTD,1721342:152551210,"53,636.73",Legal Aid higher crime
MOJ,LAA,05/06/19,Civil Representation,LEGAL AID FUND,OTTEN PENNA LTD,1722828:3000003920670009,"54,067.50",Legal Aid civil representation
MOJ,LAA,05/06/19,Higher Crime,LEGAL AID FUND,O'KEEFFE SOLICITORS,1723071:152547987,"54,274.19",Legal Aid higher crime
MOJ,LAA,05/06/19,Civil Representation,LEGAL AID FUND,STEFANO NUVOLONI QC,1722557:3000004703470003,"55,890.00",Legal Aid civil representation
MOJ,LAA,05/06/19,Higher Crime,LEGAL AID FUND,PHILIP EVANS,1720691:152506214,"57,660.00",Legal Aid higher crime
MOJ,LAA,05/06/19,Higher Crime,LEGAL AID FUND,BENJAMIN A O AINA QC,1720682:152505850,"59,040.00",Legal Aid higher crime
MOJ,LAA,05/06/19,Higher Crime,LEGAL AID FUND,SONN MACMILLAN WALKER LTD,1723025:152507778,"60,235.30",Legal Aid higher crime
MOJ,LAA,05/06/19,Civil Representation,LEGAL AID FUND,CHARLES ALLOTEY & CO,1724421:152501271,"62,126.73",Legal Aid civil representation
MOJ,LAA,05/06/19,Higher Crime,LEGAL AID FUND,HARRIS SOLICITORS LTD,1721254:152547902,"63,047.47",Legal Aid higher crime
MOJ,LAA,05/06/19,Higher Crime,LEGAL AID FUND,GOODALL BARNETT JAMES SOLICITORS,1722997:152496011,"63,564.68",Legal Aid higher crime
MOJ,LAA,05/06/19,Higher Crime,LEGAL AID FUND,JAMES MURRAY SOLICITORS,1722778:152546718,"64,555.20",Legal Aid higher crime
MOJ,LAA,05/06/19,Higher Crime,LEGAL AID FUND,HUSSEIN SOLICITORS,1721258:152515673,"64,774.59",Legal Aid higher crime
MOJ,LAA,05/06/19,EXP - PURCHASE OF GOODS/SERVICES - OTHER TRAVEL - UK Other,Centralised Costs,CORPORATE TRAVEL MANAGEMENT NORTH LTD,8854,"65,606.50",Travel costs
MOJ,LAA,05/06/19,Higher Crime,LEGAL AID FUND,GORDON SHINE & COMPANY SOLICITORS,1721654:152524662,"66,612.32",Legal Aid higher crime
MOJ,LAA,05/06/19,Higher Crime,LEGAL AID FUND,CASTLE SOLICITORS LTD,1720481:152506305,"67,604.04",Legal Aid higher crime
MOJ,LAA,05/06/19,Higher Crime,LEGAL AID FUND,TANVEER A QURESHI,1723922:152522487,"69,560.00",Legal Aid higher crime
MOJ,LAA,05/06/19,Higher Crime,LEGAL AID FUND,BRIAN L ST LOUIS,1722235:152506204,"74,169.00",Legal Aid higher crime
MOJ,LAA,05/06/19,Higher Crime,LEGAL AID FUND,ROBERT LAYTON & CO,1723081:152497253,"75,208.73",Legal Aid higher crime
MOJ,LAA,05/06/19,Higher Crime,LEGAL AID FUND,RUSTEM GUARDIAN LLP,1721385:152515482,"80,680.14",Legal Aid higher crime
MOJ,LAA,05/06/19,Higher Crime,LEGAL AID FUND,FARNSWORTH MORGAN BAKHAT,1722662:152515460,"81,342.95",Legal Aid higher crime
MOJ,LAA,05/06/19,Higher Crime,LEGAL AID FUND,EBR ATTRIDGE LLP,1722670:152525959,"83,907.35",Legal Aid higher crime
MOJ,LAA,05/06/19,Higher Crime,LEGAL AID FUND,SINGH SOLICITORS LTD,1721820:152546546,"84,240.11",Legal Aid higher crime
MOJ,LAA,05/06/19,Higher Crime,LEGAL AID FUND,AYUB SOLICITORS,1723289:152506738,"85,093.61",Legal Aid higher crime
MOJ,LAA,05/06/19,Higher Crime,LEGAL AID FUND,VIRDEES SOLICITORS LTD,1721292:152496632,"85,556.93",Legal Aid higher crime
MOJ,LAA,05/06/19,Higher Crime,LEGAL AID FUND,MARK R TRAFFORD QC,1721088:152546867,"88,606.20",Legal Aid higher crime
MOJ,LAA,05/06/19,Higher Crime,LEGAL AID FUND,ADVICE WISE SOLICITORS LTD,1721275:152515608,"89,975.11",Legal Aid higher crime
MOJ,LAA,05/06/19,Higher Crime,LEGAL AID FUND,CARLTON PLACE LAW,1724136:152505950,"89,975.11",Legal Aid higher crime
MOJ,LAA,05/06/19,Higher Crime,LEGAL AID FUND,FARNSWORTH MORGAN BAKHAT,1722662:152515260,"89,975.11",Legal Aid higher crime
MOJ,LAA,05/06/19,Higher Crime,LEGAL AID FUND,GQS SOLICITORS,1720548:152516141,"89,975.11",Legal Aid higher crime
MOJ,LAA,05/06/19,Higher Crime,LEGAL AID FUND,M & M SOLICITORS.,1721314:152505968,"89,975.11",Legal Aid higher crime
MOJ,LAA,05/06/19,Higher Crime,LEGAL AID FUND,MESSRS WATERFORDS SOLICITORS,1721656:152546314,"89,975.11",Legal Aid higher crime
MOJ,LAA,05/06/19,Higher Crime,LEGAL AID FUND,Q & A LEGAL LTD,1721795:152546380,"89,975.11",Legal Aid higher crime
MOJ,LAA,05/06/19,Higher Crime,LEGAL AID FUND,ROLAND ROBINSONS AND FENTONS LLP,1723004:152515844,"89,975.11",Legal Aid higher crime
MOJ,LAA,05/06/19,Higher Crime,LEGAL AID FUND,SPERRIN  LAW LTD,1721826:152516825,"89,975.11",Legal Aid higher crime
MOJ,LAA,05/06/19,Higher Crime,LEGAL AID FUND,DEFENCE LAW LTD,1721311:152506147,"94,196.84",Legal Aid higher crime
MOJ,LAA,05/06/19,Civil Representation,LEGAL AID FUND,SUSAN HOWARTH & CO SOLICITORS LTD,1724369:3000003225270019,"96,094.74",Legal Aid civil representation
MOJ,LAA,05/06/19,Higher Crime,LEGAL AID FUND,QUINN MELVILLE,1724139:152548006,"98,400.70",Legal Aid higher crime
MOJ,LAA,05/06/19,Higher Crime,LEGAL AID FUND,S SATHA & CO LTD,1721572:152546411,"104,988.07",Legal Aid higher crime
MOJ,LAA,05/06/19,Higher Crime,LEGAL AID FUND,AMOSU ROBINSHAW LTD,1724189:152546409,"105,857.93",Legal Aid higher crime
MOJ,LAA,05/06/19,Civil Representation,LEGAL AID FUND,MARK J TWOMEY QC,1721053:300000234648DSW1144,"107,276.40",Legal Aid civil representation
MOJ,LAA,05/06/19,Higher Crime,LEGAL AID FUND,NOBLE SOLICITORS,1721243:152496473,"107,574.07",Legal Aid higher crime
MOJ,LAA,07/06/19,EXP - MISCELLANEOUS EXPENDITURE - Litigator,Central Funds,KENYON MCATEER SOLICITORS,M1112263/128023,"119,202.02",Legal fees
MOJ,LAA,10/06/19,EXP - PURCHASE OF GOODS/SERVICES - OFFICE RELATED - POSTAGE,Civil Case Management  - London,DX NETWORK SERVICES LTD,82229791,"89,258.73",Postage costs
MOJ,LAA,12/06/19,Civil Representation,LEGAL AID FUND,JAMES D SANDERS,1728335:3000003562820009,"25,037.75",Legal Aid civil representation
MOJ,LAA,12/06/19,Civil Representation,LEGAL AID FUND,TAYLOR HALDANE BARLEX LLP,1726420:3000003630520014,"25,168.62",Legal Aid civil representation
MOJ,LAA,12/06/19,Civil Representation,LEGAL AID FUND,FAISAL A SAIFEE,1727713:152563112,"25,171.37",Legal Aid civil representation
MOJ,LAA,12/06/19,Higher Crime,LEGAL AID FUND,AYUB SOLICITORS,1725079:152603944,"25,319.63",Legal Aid higher crime
MOJ,LAA,12/06/19,Civil Representation,LEGAL AID FUND,D P LAW LTD.,1726837:3000001990910054,"25,425.57",Legal Aid civil representation
MOJ,LAA,12/06/19,Higher Crime,LEGAL AID FUND,BENJAMIN A NEWTON,1727699:152610316,"25,511.09",Legal Aid higher crime
MOJ,LAA,12/06/19,Civil Representation,LEGAL AID FUND,STONES SOLICITORS LLP,1726808:300000056931IK640,"25,649.16",Legal Aid civil representation
MOJ,LAA,12/06/19,Civil Representation,LEGAL AID FUND,YASMEEN UL HAQ,1727385:3000001637240052,"25,660.80",Legal Aid civil representation
MOJ,LAA,12/06/19,Civil Representation,LEGAL AID FUND,BERKSON FAMILY LAW SOLICITORS LTD,1728819:3000002553550036,"25,952.48",Legal Aid civil representation
MOJ,LAA,12/06/19,Higher Crime,LEGAL AID FUND,HIGHGATE SOLICITORS LTD-ADVOCATE,1724988:152566215,"26,078.23",Legal Aid higher crime
MOJ,LAA,12/06/19,Civil Representation,LEGAL AID FUND,SWITALSKI'S SOLICITORS LTD,1725213:3000003660170007,"26,379.60",Legal Aid civil representation
MOJ,LAA,12/06/19,Higher Crime,LEGAL AID FUND,CARSON KAYE SOLICITORS,1725112:152575506,"26,561.80",Legal Aid higher crime
MOJ,LAA,12/06/19,Higher Crime,LEGAL AID FUND,LLOYDS PR SOLICITORS,1726192:152575507,"26,561.80",Legal Aid higher crime
MOJ,LAA,12/06/19,Civil Representation,LEGAL AID FUND,BHATIA BEST LTD,1728707:3000002496380024,"26,663.48",Legal Aid civil representation
MOJ,LAA,12/06/19,Higher Crime,LEGAL AID FUND,MICHAEL NEOFYTOU,1726124:152575051,"26,700.00",Legal Aid higher crime
MOJ,LAA,12/06/19,Civil Representation,LEGAL AID FUND,KAY M JONES,1728087:3000002629400010,"26,780.04",Legal Aid civil representation
MOJ,LAA,12/06/19,Civil Representation,LEGAL AID FUND,OSBORNES SOLICITORS LLP,1728930:3000003876580003,"26,861.90",Legal Aid civil representation
MOJ,LAA,12/06/19,Lower Crime,LEGAL AID FUND,THE JOHNSON PARTNERSHIP,1726525:152580792,"27,300.76",Legal Aid lower crime
MOJ,LAA,12/06/19,Higher Crime,LEGAL AID FUND,MELANIE SIMPSON,1728223:152575124,"27,450.00",Legal Aid higher crime
MOJ,LAA,12/06/19,Higher Crime,LEGAL AID FUND,RUTH BROADBENT,1724876:152584675,"27,450.00",Legal Aid higher crime
MOJ,LAA,12/06/19,Higher Crime,LEGAL AID FUND,CHRISTOPHER C SYKES,1727104:152575589,"27,900.00",Legal Aid higher crime
MOJ,LAA,12/06/19,Civil Representation,LEGAL AID FUND,BIRMINGHAM LEGAL LTD,1728417:3000003288540005,"27,918.46",Legal Aid civil representation
MOJ,LAA,12/06/19,Civil Representation,LEGAL AID FUND,LIANNE C MURPHY,1728249:3000004416400027,"27,996.91",Legal Aid civil representation
MOJ,LAA,12/06/19,Higher Crime,LEGAL AID FUND,EVAN MOORE SOLICITORS,1724982:152556445,"28,042.19",Legal Aid higher crime
MOJ,LAA,12/06/19,Higher Crime,LEGAL AID FUND,ROSE & DUNN,1728416:152603142,"28,047.82",Legal Aid higher crime
MOJ,LAA,12/06/19,Higher Crime,LEGAL AID FUND,DAVID B NATHAN QC,1727429:152575309,"28,200.00",Legal Aid higher crime
MOJ,LAA,12/06/19,Higher Crime,LEGAL AID FUND,JUSTIN C D ROUSE,1726155:152584789,"28,200.00",Legal Aid higher crime
MOJ,LAA,12/06/19,Higher Crime,LEGAL AID FUND,AISHA KHAN,1725252:152555606,"28,361.47",Legal Aid higher crime
MOJ,LAA,12/06/19,Higher Crime,LEGAL AID FUND,TUCKERS SOLICITORS LLP,1727289:152602918,"28,392.79",Legal Aid higher crime
MOJ,LAA,12/06/19,Civil Representation,LEGAL AID FUND,AVADIS & CO SOLICITORS,1728540:3000004064870010,"28,476.98",Legal Aid civil representation
MOJ,LAA,12/06/19,Higher Crime,LEGAL AID FUND,GOMER WILLIAMS,1726834:152555840,"28,497.62",Legal Aid higher crime
MOJ,LAA,12/06/19,Higher Crime,LEGAL AID FUND,HELEN C CHAPMAN,1727471:152565562,"28,836.00",Legal Aid higher crime
MOJ,LAA,12/06/19,Civil Representation,LEGAL AID FUND,SWITALSKI'S SOLICITORS LTD,1727412:3000004817830005,"28,894.50",Legal Aid civil representation
MOJ,LAA,12/06/19,Higher Crime,LEGAL AID FUND,ELDWICK LAW,1727046:152566473,"29,217.52",Legal Aid higher crime
MOJ,LAA,12/06/19,Higher Crime,LEGAL AID FUND,RICHARD M LITTLER,1725593:152557344,"29,520.00",Legal Aid higher crime
MOJ,LAA,12/06/19,Higher Crime,LEGAL AID FUND,WISEMAN LEE LLP,1726696:152603466,"29,650.20",Legal Aid higher crime
MOJ,LAA,12/06/19,Higher Crime,LEGAL AID FUND,APPLEBY SHAW LTD,1725123:152576151,"29,664.55",Legal Aid higher crime
MOJ,LAA,12/06/19,Higher Crime,LEGAL AID FUND,GORDON SHINE & COMPANY SOLICITORS,1726781:152575352,"29,664.55",Legal Aid higher crime
MOJ,LAA,12/06/19,Higher Crime,LEGAL AID FUND,JOSEPH HILL & CO,1728686:152585421,"29,709.44",Legal Aid higher crime
MOJ,LAA,12/06/19,Civil Representation,LEGAL AID FUND,CREIGHTON & PARTNERS,1728462:3000003034840009,"29,928.00",Legal Aid civil representation
MOJ,LAA,12/06/19,Higher Crime,LEGAL AID FUND,BYRNE & PARTNERS LLP,1726458:152610161,"30,017.34",Legal Aid higher crime
MOJ,LAA,12/06/19,Civil Representation,LEGAL AID FUND,AIDAN J W VINE QC,1727900:3000003964500015,"30,034.80",Legal Aid civil representation
MOJ,LAA,12/06/19,Civil Representation,LEGAL AID FUND,BOOTS STARKE GOACHER SOLICITORS,1726443:3000001543680021,"30,515.14",Legal Aid civil representation
MOJ,LAA,12/06/19,Higher Crime,LEGAL AID FUND,DANIEL DARNBROUGH,1725316:152603632,"30,540.00",Legal Aid higher crime
MOJ,LAA,12/06/19,EXP - PURCHASE OF GOODS/SERVICES - OTHER - Information Search Services,Counter Fraud & Intelligence,THURROCK BOROUGH COUNCIL,9172043,"30,613.49",Professional services 
MOJ,LAA,12/06/19,Civil Representation,LEGAL AID FUND,JORDANS SOLICITORS,1726649:3000002443630024,"30,887.63",Legal Aid civil representation
MOJ,LAA,12/06/19,Higher Crime,LEGAL AID FUND,MARK FRASER,1725662:152565995,"30,928.74",Legal Aid higher crime
MOJ,LAA,12/06/19,Higher Crime,LEGAL AID FUND,THE JOHNSON PARTNERSHIP-ADVOCATE,1725516:152556031,"31,377.00",Legal Aid higher crime
MOJ,LAA,12/06/19,Higher Crime,LEGAL AID FUND,CLIFFORD JOHNSTON & CO,1728602:152585728,"31,513.48",Legal Aid higher crime
MOJ,LAA,12/06/19,Higher Crime,LEGAL AID FUND,THE JOHNSON PARTNERSHIP,1726525:152576194,"31,668.88",Legal Aid higher crime
MOJ,LAA,12/06/19,Civil Representation,LEGAL AID FUND,ANDREW K BAGCHI QC,1728008:3000003655980019,"31,687.20",Legal Aid civil representation
MOJ,LAA,12/06/19,Higher Crime,LEGAL AID FUND,LAWRENCE & CO SOLICITORS CDS LLP,1728687:152567156,"31,845.26",Legal Aid higher crime
MOJ,LAA,12/06/19,EXP - PURCHASE OF GOODS/SERVICES - OTHER - Translation / Interpreting Services,Central Funds,CLARION INTERPRETING LTD,60830,"31,871.01",Translation / interpreter costs
MOJ,LAA,12/06/19,Higher Crime,LEGAL AID FUND,M B LAW LTD,1724892:152604040,"32,230.87",Legal Aid higher crime
MOJ,LAA,12/06/19,Civil Representation,LEGAL AID FUND,KATHARINE MARKS,1728200:3000003882760020,"32,244.42",Legal Aid civil representation
MOJ,LAA,12/06/19,Civil Representation,LEGAL AID FUND,JAMES H H TILLYARD QC,1728048:3000003131090010,"32,562.00",Legal Aid civil representation
MOJ,LAA,12/06/19,Higher Crime,LEGAL AID FUND,EMMA C SCOTT,1727194:152566783,"32,730.00",Legal Aid higher crime
MOJ,LAA,12/06/19,Higher Crime,LEGAL AID FUND,ELOISE M K MARSHALL,1728029:152565688,"33,247.79",Legal Aid higher crime
MOJ,LAA,12/06/19,Higher Crime,LEGAL AID FUND,BENJAMIN A NEWTON,1727699:152567370,"33,360.00",Legal Aid higher crime
MOJ,LAA,12/06/19,Civil Representation,LEGAL AID FUND,THE RICHMOND PARTNERSHIP,1726217:3000002257380017,"33,595.52",Legal Aid civil representation
MOJ,LAA,12/06/19,Higher Crime,LEGAL AID FUND,A TOBY HEDWORTH QC,1726126:152566285,"33,720.00",Legal Aid higher crime
MOJ,LAA,12/06/19,Civil Representation,LEGAL AID FUND,ELIZABETH WILLSTEED,1725648:3000001658870019,"34,200.88",Legal Aid civil representation
MOJ,LAA,12/06/19,Higher Crime,LEGAL AID FUND,JI SOLICITORS LTD,1726638:152603283,"34,311.85",Legal Aid higher crime
MOJ,LAA,12/06/19,Civil Representation,LEGAL AID FUND,DUNCAN LEWIS SOLICITORS  LTD,1726402:3000003106760035,"34,477.53",Legal Aid civil representation
MOJ,LAA,12/06/19,Higher Crime,LEGAL AID FUND,GOMER WILLIAMS,1726834:152565463,"34,576.28",Legal Aid higher crime
MOJ,LAA,12/06/19,Higher Crime,LEGAL AID FUND,HUSSAIN SOLICITORS LTD,1728513:152603576,"35,497.65",Legal Aid higher crime
MOJ,LAA,12/06/19,Higher Crime,LEGAL AID FUND,SUNDIP MURRIA SOLICITORS,1726305:152567052,"35,597.46",Legal Aid higher crime
MOJ,LAA,12/06/19,Higher Crime,LEGAL AID FUND,BERKELEY SQUARE SOLICITORS LTD,1725009:152555838,"36,749.15",Legal Aid higher crime
MOJ,LAA,12/06/19,Higher Crime,LEGAL AID FUND,RODERICK I JAMES,1726103:152556770,"36,870.00",Legal Aid higher crime
MOJ,LAA,12/06/19,Higher Crime,LEGAL AID FUND,S SATHA & CO LTD,1726595:152604299,"36,874.51",Legal Aid higher crime
MOJ,LAA,12/06/19,Higher Crime,LEGAL AID FUND,LAW 24,1725109:152603333,"37,670.80",Legal Aid higher crime
MOJ,LAA,12/06/19,Higher Crime,LEGAL AID FUND,ACHILLEA & CO,1726386:152576755,"37,697.14",Legal Aid higher crime
MOJ,LAA,12/06/19,Higher Crime,LEGAL AID FUND,SATYANAND S BEHARRYLAL,1727606:152555676,"37,860.00",Legal Aid higher crime
MOJ,LAA,12/06/19,Civil Representation,LEGAL AID FUND,KHF SOLICITORS LTD,1726218:3000001985620014,"38,408.24",Legal Aid civil representation
MOJ,LAA,12/06/19,Higher Crime,LEGAL AID FUND,CROWLEY & CO,1726792:152575058,"38,563.92",Legal Aid higher crime
MOJ,LAA,12/06/19,Civil Representation,LEGAL AID FUND,CARVERS LLP,1726449:3000002087400024,"38,818.17",Legal Aid civil representation
MOJ,LAA,12/06/19,Higher Crime,LEGAL AID FUND,ALEXIA POWER,1728037:152555873,"38,940.00",Legal Aid higher crime
MOJ,LAA,12/06/19,Civil Representation,LEGAL AID FUND,KOSSAR KITCHING,1726184:3000003733640041,"39,139.20",Legal Aid civil representation
MOJ,LAA,12/06/19,Higher Crime,LEGAL AID FUND,CARSON KAYE SOLICITORS,1725112:152556318,"39,263.80",Legal Aid higher crime
MOJ,LAA,12/06/19,Higher Crime,LEGAL AID FUND,ALI N BAJWA QC,1728210:152555805,"39,720.00",Legal Aid higher crime
MOJ,LAA,12/06/19,Higher Crime,LEGAL AID FUND,DOBSONS,1728972:152585110,"41,270.78",Legal Aid higher crime
MOJ,LAA,12/06/19,Higher Crime,LEGAL AID FUND,MARK R HARRIES,1727862:152575083,"41,441.40",Legal Aid higher crime
MOJ,LAA,12/06/19,Civil Representation,LEGAL AID FUND,NASSERA BUTT,1727910:3000002698500025,"41,601.60",Legal Aid civil representation
MOJ,LAA,12/06/19,Higher Crime,LEGAL AID FUND,PAUL R HYNES QC,1728224:152584527,"41,940.00",Legal Aid higher crime
MOJ,LAA,12/06/19,Higher Crime,LEGAL AID FUND,CHRISTOPHER J HARDING,1727774:152610845,"43,800.00",Legal Aid higher crime
MOJ,LAA,12/06/19,Higher Crime,LEGAL AID FUND,THOMAS P WILLIAMS,1727302:152608135,"43,800.00",Legal Aid higher crime
MOJ,LAA,12/06/19,Higher Crime,LEGAL AID FUND,PETER J DOYLE QC,1728211:152565898,"44,400.00",Legal Aid higher crime
MOJ,LAA,12/06/19,Higher Crime,LEGAL AID FUND,JUDITH KHAN QC,1725251:152567223,"44,760.00",Legal Aid higher crime
MOJ,LAA,12/06/19,Civil Representation,LEGAL AID FUND,BRETHERTON LAW LTD,1726491:152570427,"44,852.51",Legal Aid civil representation
MOJ,LAA,12/06/19,Higher Crime,LEGAL AID FUND,ANYA L LEWIS,1725285:152566685,"45,027.12",Legal Aid higher crime
MOJ,LAA,12/06/19,Civil Representation,LEGAL AID FUND,TINA G COOK QC,1725850:3000003461300005,"45,183.19",Legal Aid civil representation
MOJ,LAA,12/06/19,Civil Representation,LEGAL AID FUND,POND MARSH,1726751:3000001343360006,"46,067.85",Legal Aid civil representation
MOJ,LAA,12/06/19,Civil Representation,LEGAL AID FUND,SIMON J S POVOAS,1725763:3000002737080010,"46,743.86",Legal Aid civil representation
MOJ,LAA,12/06/19,Civil Representation,LEGAL AID FUND,FDR LAW,1728757:3000002737080011,"47,082.22",Legal Aid civil representation
MOJ,LAA,12/06/19,Higher Crime,LEGAL AID FUND,ABBAS LAKHA,1726104:152555614,"47,411.92",Legal Aid higher crime
MOJ,LAA,12/06/19,Higher Crime,LEGAL AID FUND,CARTWRIGHT KING LTD,1728524:152557151,"47,853.52",Legal Aid higher crime
MOJ,LAA,12/06/19,Higher Crime,LEGAL AID FUND,SEAN LARKIN QC,1725300:152609418,"48,360.05",Legal Aid higher crime
MOJ,LAA,12/06/19,Higher Crime,LEGAL AID FUND,ANDREW P KERR,1725116:152565318,"49,002.96",Legal Aid higher crime
MOJ,LAA,12/06/19,Higher Crime,LEGAL AID FUND,SIMON RUSSELL-FLINT QC,1728040:152556376,"49,260.00",Legal Aid higher crime
MOJ,LAA,12/06/19,Higher Crime,LEGAL AID FUND,THE JOHNSON PARTNERSHIP,1726525:152566084,"49,729.07",Legal Aid higher crime
MOJ,LAA,12/06/19,Higher Crime,LEGAL AID FUND,MICHAEL F R HOLLAND QC,1726145:152555819,"50,325.79",Legal Aid higher crime
MOJ,LAA,12/06/19,Higher Crime,LEGAL AID FUND,CROWLEY & CO,1726792:152566204,"51,196.31",Legal Aid higher crime
MOJ,LAA,12/06/19,Higher Crime,LEGAL AID FUND,THE CENTRAL LAW PRACTICE,1726417:152585287,"52,272.04",Legal Aid higher crime
MOJ,LAA,12/06/19,Civil Representation,LEGAL AID FUND,HMA SOLICITORS,1726200:152562703,"53,529.92",Legal Aid civil representation
MOJ,LAA,12/06/19,Higher Crime,LEGAL AID FUND,HANRATTY & CO,1728870:152576518,"55,941.52",Legal Aid higher crime
MOJ,LAA,12/06/19,Higher Crime,LEGAL AID FUND,IRVINE THANVI NATAS SOLICITORS,1728467:152603312,"56,128.68",Legal Aid higher crime
MOJ,LAA,12/06/19,Higher Crime,LEGAL AID FUND,DPP LAW LTD,1728452:152566115,"60,310.56",Legal Aid higher crime
MOJ,LAA,12/06/19,Higher Crime,LEGAL AID FUND,GSG LAW (LTD),1725038:152585116,"65,378.40",Legal Aid higher crime
MOJ,LAA,12/06/19,Higher Crime,LEGAL AID FUND,RAHMAN RAVELLI SOLICITORS LTD,1724962:152555930,"67,726.70",Legal Aid higher crime
MOJ,LAA,12/06/19,Higher Crime,LEGAL AID FUND,THOMAS BOYD WHYTE SOLICITORS,1728937:152603250,"70,741.27",Legal Aid higher crime
MOJ,LAA,12/06/19,Higher Crime,LEGAL AID FUND,WALSH SOLICITORS LTD,1725089:152555687,"71,545.90",Legal Aid higher crime
MOJ,LAA,12/06/19,Higher Crime,LEGAL AID FUND,NICHOLAS P RHODES QC,1728326:152556823,"76,500.00",Legal Aid higher crime
MOJ,LAA,12/06/19,Higher Crime,LEGAL AID FUND,CHARLES I SHERRARD,1728010:152555887,"77,880.00",Legal Aid higher crime
MOJ,LAA,12/06/19,Civil Representation,LEGAL AID FUND,PEARSONS,1728541:3000000700650026,"79,247.80",Legal Aid civil representation
MOJ,LAA,12/06/19,Higher Crime,LEGAL AID FUND,HARRIS SOLICITORS LTD,1728261:152584522,"79,318.04",Legal Aid higher crime
MOJ,LAA,12/06/19,Higher Crime,LEGAL AID FUND,DAVID SEDGWICK SOLICITORS LTD,1728373:152603265,"79,848.61",Legal Aid higher crime
MOJ,LAA,12/06/19,Higher Crime,LEGAL AID FUND,CARTWRIGHT KING LTD,1725006:152556507,"82,425.98",Legal Aid higher crime
MOJ,LAA,12/06/19,Higher Crime,LEGAL AID FUND,SVS SOLICITORS,1726196:152602877,"83,489.48",Legal Aid higher crime
MOJ,LAA,12/06/19,Higher Crime,LEGAL AID FUND,MITCHELLS,1726301:152556268,"85,194.57",Legal Aid higher crime
MOJ,LAA,12/06/19,Higher Crime,LEGAL AID FUND,KANGS SOLICITORS,1728900:152603483,"86,557.78",Legal Aid higher crime
MOJ,LAA,12/06/19,Higher Crime,LEGAL AID FUND,JOHN RYDER QC,1725976:152608140,"86,840.00",Legal Aid higher crime
MOJ,LAA,12/06/19,Higher Crime,LEGAL AID FUND,STUART H M DENNEY,1725867:152610846,"86,840.00",Legal Aid higher crime
MOJ,LAA,12/06/19,Higher Crime,LEGAL AID FUND,CARTERS SOLICITORS,1728375:152575873,"89,975.11",Legal Aid higher crime
MOJ,LAA,12/06/19,Higher Crime,LEGAL AID FUND,LLOYDS PR SOLICITORS,1726192:152556356,"89,975.11",Legal Aid higher crime
MOJ,LAA,12/06/19,Higher Crime,LEGAL AID FUND,NEIL FOLEY & COMPANY,1726418:152603706,"89,975.11",Legal Aid higher crime
MOJ,LAA,12/06/19,Higher Crime,LEGAL AID FUND,OWEN WHITE & CATLIN,1728957:152602883,"89,975.11",Legal Aid higher crime
MOJ,LAA,12/06/19,Higher Crime,LEGAL AID FUND,Q & A LEGAL LTD,1727124:152556403,"89,975.11",Legal Aid higher crime
MOJ,LAA,12/06/19,Higher Crime,LEGAL AID FUND,WESTGARTHS,1728508:152555590,"89,975.11",Legal Aid higher crime
MOJ,LAA,12/06/19,Higher Crime,LEGAL AID FUND,LESLIE FRANKS SOLICITORS,1728402:152576854,"90,033.54",Legal Aid higher crime
MOJ,LAA,12/06/19,Higher Crime,LEGAL AID FUND,ABV SOLICITORS,1726369:152603271,"105,857.75",Legal Aid higher crime
MOJ,LAA,12/06/19,Higher Crime,LEGAL AID FUND,ACA LAW LTD,1728447:152603350,"107,574.07",Legal Aid higher crime
MOJ,LAA,12/06/19,Higher Crime,LEGAL AID FUND,COBAINS SOLICITORS,1726396:152575803,"107,970.13",Legal Aid higher crime
MOJ,LAA,12/06/19,Higher Crime,LEGAL AID FUND,LLOYDS PR SOLICITORS,1726192:152585368,"107,970.13",Legal Aid higher crime
MOJ,LAA,13/06/19,EXP - PURCHASE OF GOODS/SERVICES - OTHER - Central Funds - Other,Central Funds,MISHCON DE REYA,M1100641/128396,"34,860.98",Court costs
MOJ,LAA,13/06/19,EXP - PURCHASE OF GOODS/SERVICES - IT MANAGEMENT AND CHANGE - Exit Management,Business Systems Mgmt,REDROCK CONSULTING LTD,8721,"45,212.50",Information technology costs
MOJ,LAA,18/06/19,EXP - PURCHASE OF GOODS/SERVICES - OTHER - Central Funds - Other,Central Funds,MORGAN  LAROCHE SOLICITORS,M1102065/128684,"420,308.89",Court costs
MOJ,LAA,19/06/19,Higher Crime,LEGAL AID FUND,FMW LAW LTD,1731316:152624320,"25,038.44",Legal Aid higher crime
MOJ,LAA,19/06/19,Civil Representation,LEGAL AID FUND,BOWERMANS,1733390:3000003058250013,"25,157.44",Legal Aid civil representation
MOJ,LAA,19/06/19,Legal Help,LEGAL AID FUND,STEPHENSONS SOLICITORS LLP,1731350:152426170,"25,204.96",Legal Aid legal help
MOJ,LAA,19/06/19,Civil Representation,LEGAL AID FUND,LAUREN PITCHFORD,1731973:3000002297200028,"25,255.42",Legal Aid civil representation
MOJ,LAA,19/06/19,Civil Representation,LEGAL AID FUND,I B B SOLICITORS,1730980:3000004057180004,"25,379.47",Legal Aid civil representation
MOJ,LAA,19/06/19,Civil Representation,LEGAL AID FUND,ATKINS HOPE SOLICITORS LTD,1733591:3000003096390011,"25,447.43",Legal Aid civil representation
MOJ,LAA,19/06/19,Higher Crime,LEGAL AID FUND,GEMMA K MAXWELL,1729692:152632715,"25,776.00",Legal Aid higher crime
MOJ,LAA,19/06/19,Higher Crime,LEGAL AID FUND,ANDREW DAVIES,1732482:152624132,"25,869.72",Legal Aid higher crime
MOJ,LAA,19/06/19,Civil Representation,LEGAL AID FUND,DUNCAN LEWIS SOLICITORS  LTD,1732967:3000003102610044,"25,946.44",Legal Aid civil representation
MOJ,LAA,19/06/19,Higher Crime,LEGAL AID FUND,DMA LAW LTD,1733304:152624455,"26,044.18",Legal Aid higher crime
MOJ,LAA,19/06/19,Legal Help,LEGAL AID FUND,CORAM CHILDREN'S LEGAL CENTRE,1733263:152629423,"26,369.83",Legal Aid legal help
MOJ,LAA,19/06/19,Civil Representation,LEGAL AID FUND,EDWARDS DUTHIE SHAMASH SOLICITORS,1731381:3000002622350015,"26,456.42",Legal Aid civil representation
MOJ,LAA,19/06/19,Higher Crime,LEGAL AID FUND,DPP LAW LTD,1733098:152623941,"26,613.54",Legal Aid higher crime
MOJ,LAA,19/06/19,Civil Representation,LEGAL AID FUND,DUNN & BAKER LLP,1731382:3000003719170019,"26,654.94",Legal Aid civil representation
MOJ,LAA,19/06/19,Civil Representation,LEGAL AID FUND,JEREMY P WESTON,1730768:3000002976180021,"26,697.60",Legal Aid civil representation
MOJ,LAA,19/06/19,Higher Crime,LEGAL AID FUND,ZMS LEGAL LTD TA ZMS SOLICITORS,1733060:152642667,"26,893.54",Legal Aid higher crime
MOJ,LAA,19/06/19,Higher Crime,LEGAL AID FUND,GAMMON PIERCY & GAIGER LLP,1733595:152624409,"26,908.44",Legal Aid higher crime
MOJ,LAA,19/06/19,Civil Representation,LEGAL AID FUND,COZENS-HARDY LLP,1731093:3000002668350013,"26,912.96",Legal Aid civil representation
MOJ,LAA,19/06/19,Civil Representation,LEGAL AID FUND,BEN HOARE BELL LLP,1732060:3000003173020011,"26,931.41",Legal Aid civil representation
MOJ,LAA,19/06/19,Higher Crime,LEGAL AID FUND,SARAH VINE,1729924:152632630,"26,970.00",Legal Aid higher crime
MOJ,LAA,19/06/19,Higher Crime,LEGAL AID FUND,ARTHUR G A GIBSON,1730267:152613222,"27,012.00",Legal Aid higher crime
MOJ,LAA,19/06/19,Higher Crime,LEGAL AID FUND,OWEN NASH & CO,1733520:152633080,"27,210.54",Legal Aid higher crime
MOJ,LAA,19/06/19,Civil Representation,LEGAL AID FUND,BDH SOLICITORS LTD,1733411:3000003879910016,"27,256.77",Legal Aid civil representation
MOJ,LAA,19/06/19,Higher Crime,LEGAL AID FUND,FRIDA K HUSSAIN,1732686:152640796,"28,317.50",Legal Aid higher crime
MOJ,LAA,19/06/19,Higher Crime,LEGAL AID FUND,STUART MILLER SOLICITORS LTD,1731225:152633604,"28,402.90",Legal Aid higher crime
MOJ,LAA,19/06/19,Higher Crime,LEGAL AID FUND,MELANIE SIMPSON,1732846:152613101,"28,800.00",Legal Aid higher crime
MOJ,LAA,19/06/19,Higher Crime,LEGAL AID FUND,CRANFELDS,1731768:152623565,"28,901.50",Legal Aid higher crime
MOJ,LAA,19/06/19,Civil Representation,LEGAL AID FUND,SWITALSKI'S SOLICITORS LTD,1730804:3000003573720005,"29,112.44",Legal Aid civil representation
MOJ,LAA,19/06/19,Civil Representation,LEGAL AID FUND,AMANDA C A MILLER,1730326:3000003099290011,"29,390.19",Legal Aid civil representation
MOJ,LAA,19/06/19,Higher Crime,LEGAL AID FUND,J D SPICER ZEB,1729818:152632284,"29,403.47",Legal Aid higher crime
MOJ,LAA,19/06/19,Civil Representation,LEGAL AID FUND,SILLS & BETTERIDGE LLP,1732068:3000001912830024,"29,439.28",Legal Aid civil representation
MOJ,LAA,19/06/19,Civil Representation,LEGAL AID FUND,ANDREW LEONG,1730478:3000001989890005,"29,624.40",Legal Aid civil representation
MOJ,LAA,19/06/19,Higher Crime,LEGAL AID FUND,CJCH SOLICITORS,1730024:152613939,"29,664.55",Legal Aid higher crime
MOJ,LAA,19/06/19,Higher Crime,LEGAL AID FUND,STUART MILLER SOLICITORS LTD,1731225:152613217,"29,664.55",Legal Aid higher crime
MOJ,LAA,19/06/19,Civil Representation,LEGAL AID FUND,NKUMBE EKANEY QC,1730457:3000002384570016,"30,200.77",Legal Aid civil representation
MOJ,LAA,19/06/19,Civil Representation,LEGAL AID FUND,VICTORIA L HODGES,1732819:3000002747890029,"30,236.05",Legal Aid civil representation
MOJ,LAA,19/06/19,Civil Representation,LEGAL AID FUND,WARD HADAWAY,1731243:3000002462670024,"30,298.21",Legal Aid civil representation
MOJ,LAA,19/06/19,Higher Crime,LEGAL AID FUND,AMOSU ROBINSHAW LTD,1733107:152633099,"30,502.50",Legal Aid higher crime
MOJ,LAA,19/06/19,Higher Crime,LEGAL AID FUND,PETER L GUEST,1732461:152623487,"30,516.00",Legal Aid higher crime
MOJ,LAA,19/06/19,Legal Help,LEGAL AID FUND,THE COMMUNITY LAW PARTNERSHIP LTD,1733121:152665615,"30,737.88",Legal Aid legal help
MOJ,LAA,19/06/19,Higher Crime,LEGAL AID FUND,RUPERT J BOWERS,1730268:152641182,"30,900.00",Legal Aid higher crime
MOJ,LAA,19/06/19,Civil Representation,LEGAL AID FUND,THE FAMILY LAW CO BY HARTNELL CHANOT,1730016:3000002270520025,"30,932.85",Legal Aid civil representation
MOJ,LAA,19/06/19,Higher Crime,LEGAL AID FUND,JOHN T BENSON QC,1732290:152623618,"31,265.12",Legal Aid higher crime
MOJ,LAA,19/06/19,Civil Representation,LEGAL AID FUND,BALJINDER K BATH,1732778:3000002479860012,"31,276.80",Legal Aid civil representation
MOJ,LAA,19/06/19,Higher Crime,LEGAL AID FUND,SHAIKH AYUB SOLICITORS,1732927:152614372,"32,282.54",Legal Aid higher crime
MOJ,LAA,19/06/19,Civil Representation,LEGAL AID FUND,CHRISTOPHER MILLER,1732098:3000001442550022,"32,468.72",Legal Aid civil representation
MOJ,LAA,19/06/19,Civil Representation,LEGAL AID FUND,TALLENTS SOLICITORS,1733349:152630128,"32,490.97",Legal Aid civil representation
MOJ,LAA,19/06/19,Civil Representation,LEGAL AID FUND,JENNINGS,1733476:3000001975930042,"32,600.80",Legal Aid civil representation
MOJ,LAA,19/06/19,Legal Help,LEGAL AID FUND,T. A. LAW,1730882:152666469,"32,605.56",Legal Aid legal help
MOJ,LAA,19/06/19,Higher Crime,LEGAL AID FUND,FREEMANS SOLICITORS,1731403:152613828,"32,687.56",Legal Aid higher crime
MOJ,LAA,19/06/19,Civil Representation,LEGAL AID FUND,DAVID H SOUTHEY QC,1732874:152579830,"33,423.54",Legal Aid civil representation
MOJ,LAA,19/06/19,Civil Representation,LEGAL AID FUND,JACKSON WEST SOLICITORS,1731309:3000002379510015,"33,657.79",Legal Aid civil representation
MOJ,LAA,19/06/19,Higher Crime,LEGAL AID FUND,VICKERS & CO,1733415:152660243,"33,824.18",Legal Aid higher crime
MOJ,LAA,19/06/19,Civil Representation,LEGAL AID FUND,CATHERINE J FAGAN,1730585:3000003172350018,"33,880.14",Legal Aid civil representation
MOJ,LAA,19/06/19,Civil Representation,LEGAL AID FUND,GILL AKASTER LLP,1731434:3000002820320012,"33,958.86",Legal Aid civil representation
MOJ,LAA,19/06/19,Civil Representation,LEGAL AID FUND,GILLIAN IRVING QC,1732345:3000003686120022,"34,433.10",Legal Aid civil representation
MOJ,LAA,19/06/19,Higher Crime,LEGAL AID FUND,PENMANS SOLICITORS LLP,1733514:152632942,"34,544.66",Legal Aid higher crime
MOJ,LAA,19/06/19,Civil Representation,LEGAL AID FUND,VICKERS & CO,1733415:3000003779850012,"34,675.44",Legal Aid civil representation
MOJ,LAA,19/06/19,Higher Crime,LEGAL AID FUND,TIMOTHY E CLARK,1732650:152632941,"34,800.00",Legal Aid higher crime
MOJ,LAA,19/06/19,Civil Representation,LEGAL AID FUND,MARTIN T MCGANN,1729579:3000003538190018,"34,820.64",Legal Aid civil representation
MOJ,LAA,19/06/19,Legal Help,LEGAL AID FUND,DIRECT HELP & ADVICE LTD,1730933:152636854,"34,852.21",Legal Aid legal help
MOJ,LAA,19/06/19,Civil Representation,LEGAL AID FUND,BATES & MOUNTAIN,1731148:3000003897850055,"35,181.00",Legal Aid civil representation
MOJ,LAA,19/06/19,Civil Representation,LEGAL AID FUND,MELISSA E B BARLOW,1732442:3000002733070010,"35,316.00",Legal Aid civil representation
MOJ,LAA,19/06/19,Civil Representation,LEGAL AID FUND,DAVID GRAY LLP,1730907:3000002400660021,"35,406.76",Legal Aid civil representation
MOJ,LAA,19/06/19,Civil Representation,LEGAL AID FUND,BATES & MOUNTAIN,1731148:3000003304450046,"35,426.17",Legal Aid civil representation
MOJ,LAA,19/06/19,Higher Crime,LEGAL AID FUND,HOWELL HYLTON LTD,1733229:152660493,"35,583.55",Legal Aid higher crime
MOJ,LAA,19/06/19,Higher Crime,LEGAL AID FUND,RHODRI W M JAMES,1730635:152642145,"35,748.00",Legal Aid higher crime
MOJ,LAA,19/06/19,Higher Crime,LEGAL AID FUND,AMOSU ROBINSHAW LTD,1733107:152623881,"35,817.79",Legal Aid higher crime
MOJ,LAA,19/06/19,Higher Crime,LEGAL AID FUND,PHILIPPA M MCATASNEY QC,1729900:152623918,"36,420.00",Legal Aid higher crime
MOJ,LAA,19/06/19,Higher Crime,LEGAL AID FUND,PURCELL PARKER LTD,1733250:152613756,"37,035.20",Legal Aid higher crime
MOJ,LAA,19/06/19,Higher Crime,LEGAL AID FUND,CHOPRA & GILL SOLICITORS,1731675:152625160,"37,296.80",Legal Aid higher crime
MOJ,LAA,19/06/19,Higher Crime,LEGAL AID FUND,JSP LAW LTD-ADVOCATE,1729792:152632088,"37,800.00",Legal Aid higher crime
MOJ,LAA,19/06/19,Higher Crime,LEGAL AID FUND,PAUL M MENDELLE QC,1732848:152623816,"37,800.00",Legal Aid higher crime
MOJ,LAA,19/06/19,Civil Representation,LEGAL AID FUND,SWITALSKI'S SOLICITORS LTD,1733280:3000003719880018,"38,643.60",Legal Aid civil representation
MOJ,LAA,19/06/19,Higher Crime,LEGAL AID FUND,ALTAF SOLICITORS LTD,1730825:152623402,"38,919.55",Legal Aid higher crime
MOJ,LAA,19/06/19,Civil Representation,LEGAL AID FUND,PEPPERELLS SOLICITORS,1730899:3000004107640013,"39,065.36",Legal Aid civil representation
MOJ,LAA,19/06/19,Higher Crime,LEGAL AID FUND,MARY MONSON SOLICITORS,1731020:152618061,"39,182.65",Legal Aid higher crime
MOJ,LAA,19/06/19,Civil Representation,LEGAL AID FUND,CYGNET FAMILY LAW,1733177:3000003087510007,"39,441.38",Legal Aid civil representation
MOJ,LAA,19/06/19,Civil Representation,LEGAL AID FUND,STEPHENS & SCOWN LLP,1731426:3000001658870020,"39,856.90",Legal Aid civil representation
MOJ,LAA,19/06/19,Civil Representation,LEGAL AID FUND,JONATHAN C WILSON,1730230:3000003834460059,"39,917.77",Legal Aid civil representation
MOJ,LAA,19/06/19,Higher Crime,LEGAL AID FUND,SARAH J ELLIOT,1730309:152640554,"40,184.57",Legal Aid higher crime
MOJ,LAA,19/06/19,Legal Help,LEGAL AID FUND,STEPHENSONS SOLICITORS LLP,1731350:152629955,"40,882.08",Legal Aid legal help
MOJ,LAA,19/06/19,Higher Crime,LEGAL AID FUND,MATTHEW E RADSTONE,1732033:152641551,"41,619.94",Legal Aid higher crime
MOJ,LAA,19/06/19,Higher Crime,LEGAL AID FUND,DANIEL E D MURRAY,1730152:152624726,"41,939.28",Legal Aid higher crime
MOJ,LAA,19/06/19,Higher Crime,LEGAL AID FUND,ACHILLEA & CO,1731015:152660712,"42,000.93",Legal Aid higher crime
MOJ,LAA,19/06/19,Higher Crime,LEGAL AID FUND,MARK A HEYWOOD QC,1733611:152632083,"43,140.00",Legal Aid higher crime
MOJ,LAA,19/06/19,Civil Representation,LEGAL AID FUND,GAYNOR HALL,1731878:3000003816920032,"43,940.88",Legal Aid civil representation
MOJ,LAA,19/06/19,Higher Crime,LEGAL AID FUND,LIAM D WALKER,1730143:152632970,"44,034.00",Legal Aid higher crime
MOJ,LAA,19/06/19,Higher Crime,LEGAL AID FUND,NARITA BAHRA,1730773:152633318,"44,400.00",Legal Aid higher crime
MOJ,LAA,19/06/19,Higher Crime,LEGAL AID FUND,JSP LAW LTD,1729726:152641492,"45,701.88",Legal Aid higher crime
MOJ,LAA,19/06/19,Higher Crime,LEGAL AID FUND,ANDREW D SMITH,1732242:152624081,"48,000.00",Legal Aid higher crime
MOJ,LAA,19/06/19,Higher Crime,LEGAL AID FUND,DAVID H T JEREMY QC,1731960:152632536,"48,900.00",Legal Aid higher crime
MOJ,LAA,19/06/19,Civil Representation,LEGAL AID FUND,T V EDWARDS LLP,1733443:152629952,"49,312.68",Legal Aid civil representation
MOJ,LAA,19/06/19,Higher Crime,LEGAL AID FUND,JMW SOLICITORS LLP,1731354:152639554,"49,750.85",Legal Aid higher crime
MOJ,LAA,19/06/19,Legal Help,LEGAL AID FUND,STEPHENSONS SOLICITORS LLP,1731350:152425683,"50,069.04",Legal Aid legal help
MOJ,LAA,19/06/19,Higher Crime,LEGAL AID FUND,FREEMANS SOLICITORS,1731403:152623182,"52,392.18",Legal Aid higher crime
MOJ,LAA,19/06/19,Higher Crime,LEGAL AID FUND,JERMAN SAMUELS & PEARSON LLP,1731707:152623395,"52,704.13",Legal Aid higher crime
MOJ,LAA,19/06/19,Civil Representation,LEGAL AID FUND,HADAWAY & HADAWAY SOLICITORS LLP,1733302:3000001613350014,"53,534.21",Legal Aid civil representation
MOJ,LAA,19/06/19,Higher Crime,LEGAL AID FUND,KARIM S KHALIL QC,1730581:152624380,"54,294.29",Legal Aid higher crime
MOJ,LAA,19/06/19,Civil Representation,LEGAL AID FUND,IRVINE THANVI NATAS SOLICITORS,1733123:152503985,"54,766.48",Legal Aid civil representation
MOJ,LAA,19/06/19,Civil Representation,LEGAL AID FUND,CLIVE R NEWTON,1729952:3000003732810044,"54,797.76",Legal Aid civil representation
MOJ,LAA,19/06/19,Higher Crime,LEGAL AID FUND,METRO LAW SOLICITORS LTD,1731672:152659689,"55,026.74",Legal Aid higher crime
MOJ,LAA,19/06/19,Higher Crime,LEGAL AID FUND,HARBANS SINGH & CO,1733554:152632708,"56,787.67",Legal Aid higher crime
MOJ,LAA,19/06/19,Higher Crime,LEGAL AID FUND,ADRIAN M WATERMAN QC,1730213:152614055,"59,040.00",Legal Aid higher crime
MOJ,LAA,19/06/19,Legal Help,LEGAL AID FUND,SIMPSON MILLAR SOLICITORS LLP,1730745:152630043,"59,421.59",Legal Aid legal help
MOJ,LAA,19/06/19,Higher Crime,LEGAL AID FUND,SONN MACMILLAN WALKER LTD,1733561:152660480,"59,674.88",Legal Aid higher crime
MOJ,LAA,19/06/19,Civil Representation,LEGAL AID FUND,STEFANO NUVOLONI QC,1730763:3000004290720005,"60,004.80",Legal Aid civil representation
MOJ,LAA,19/06/19,Higher Crime,LEGAL AID FUND,CARSON KAYE SOLICITORS,1731782:152613358,"63,413.31",Legal Aid higher crime
MOJ,LAA,19/06/19,Higher Crime,LEGAL AID FUND,ABRAHAM SOLICITORS LTD,1732988:152623359,"65,378.40",Legal Aid higher crime
MOJ,LAA,19/06/19,Higher Crime,LEGAL AID FUND,ABV SOLICITORS,1730968:152613671,"65,378.40",Legal Aid higher crime
MOJ,LAA,19/06/19,Higher Crime,LEGAL AID FUND,METRO LAW SOLICITORS LTD,1731672:152659675,"65,378.40",Legal Aid higher crime
MOJ,LAA,19/06/19,Civil Representation,LEGAL AID FUND,HANNAH M MARKHAM QC,1730511:3000002698500026,"65,640.52",Legal Aid civil representation
MOJ,LAA,19/06/19,Higher Crime,LEGAL AID FUND,M & M SOLICITORS.,1730947:152642312,"67,726.70",Legal Aid higher crime
MOJ,LAA,19/06/19,Higher Crime,LEGAL AID FUND,MCCORMACKS LAW,1731091:152632619,"68,485.86",Legal Aid higher crime
MOJ,LAA,19/06/19,Higher Crime,LEGAL AID FUND,BEN SMITTEN,1732845:152639024,"69,320.00",Legal Aid higher crime
MOJ,LAA,19/06/19,Higher Crime,LEGAL AID FUND,PATRICK C HILL,1732193:152666918,"69,320.00",Legal Aid higher crime
MOJ,LAA,19/06/19,Higher Crime,LEGAL AID FUND,SHAHIDA BEGUM,1729975:152641733,"69,450.00",Legal Aid higher crime
MOJ,LAA,19/06/19,Higher Crime,LEGAL AID FUND,THE CENTRAL LAW PRACTICE,1731049:152659626,"70,124.35",Legal Aid higher crime
MOJ,LAA,19/06/19,Higher Crime,LEGAL AID FUND,JI SOLICITORS LTD,1731188:152641864,"71,545.90",Legal Aid higher crime
MOJ,LAA,19/06/19,Civil Representation,LEGAL AID FUND,IAN J C PEDDIE QC,1729946:152608153,"78,829.20",Legal Aid civil representation
MOJ,LAA,19/06/19,Civil Representation,LEGAL AID FUND,FRANCES J JUDD QC,1732551:3000003175780026,"86,386.50",Legal Aid civil representation
MOJ,LAA,19/06/19,Higher Crime,LEGAL AID FUND,CITY LAW CHAMBERS LTD,1730815:152632744,"89,975.11",Legal Aid higher crime
MOJ,LAA,19/06/19,Higher Crime,LEGAL AID FUND,ELDWICK LAW,1731739:152613311,"89,975.11",Legal Aid higher crime
MOJ,LAA,19/06/19,Higher Crime,LEGAL AID FUND,ROSE & DUNN,1732987:152641570,"89,975.11",Legal Aid higher crime
MOJ,LAA,19/06/19,Higher Crime,LEGAL AID FUND,STUART MILLER SOLICITORS LTD,1731225:152633577,"89,975.11",Legal Aid higher crime
MOJ,LAA,19/06/19,Higher Crime,LEGAL AID FUND,WILKINSON WOODWARD.,1733249:152624830,"89,975.11",Legal Aid higher crime
MOJ,LAA,19/06/19,Legal Help,LEGAL AID FUND,SIMPSON MILLAR SOLICITORS LLP,1730745:152630114,"95,236.68",Legal Aid legal help
MOJ,LAA,19/06/19,Higher Crime,LEGAL AID FUND,MCCORMACKS LAW,1731091:152632609,"95,530.77",Legal Aid higher crime
MOJ,LAA,19/06/19,Higher Crime,LEGAL AID FUND,J D SPICER ZEB,1729818:152642060,"99,790.34",Legal Aid higher crime
MOJ,LAA,19/06/19,Higher Crime,LEGAL AID FUND,CAMBROSE & PARTNERS LTD,1731856:152642304,"105,467.18",Legal Aid higher crime
MOJ,LAA,19/06/19,Higher Crime,LEGAL AID FUND,THE CENTRAL LAW PRACTICE,1731049:152632710,"105,857.75",Legal Aid higher crime
MOJ,LAA,19/06/19,Higher Crime,LEGAL AID FUND,GLP SOLICITORS,1733262:152614852,"107,574.07",Legal Aid higher crime
MOJ,LAA,19/06/19,Higher Crime,LEGAL AID FUND,DRISCOLL YOUNG SOLICITORS LTD,1731051:152660696,"107,970.13",Legal Aid higher crime
MOJ,LAA,19/06/19,Higher Crime,LEGAL AID FUND,TYLER HOFFMAN LTD,1729633:152623595,"107,970.13",Legal Aid higher crime
MOJ,LAA,19/06/19,Civil Representation,LEGAL AID FUND,SARAH M MORGAN QC,1732678:3000002936890013,"111,412.78",Legal Aid civil representation
MOJ,LAA,19/06/19,Higher Crime,LEGAL AID FUND,ALEXANDER CAMERON QC,1732854:152666919,"138,160.00",Legal Aid higher crime
MOJ,LAA,21/06/19,EXP - PURCHASE OF GOODS/SERVICES - ACCOMMODATION & BLDNG MANAGEMENT - Property Service Charges,Property Costs - Nottingham,KNIGHT FRANK LLP,LAA-SOP1-EXI-10557,"25,930.82",Property service charges
MOJ,LAA,21/06/19,EXP - RENTALS UNDER NON-PFI OPERATING LEASES - BUILDINGS,Property Costs - Newcastle,AVISON YOUNG,LAA-SOP1-EXI-10556,"109,474.50",Rental under operating leases-Buildings
MOJ,LAA,26/06/19,Lower Crime,LEGAL AID FUND,ABBEY SOLICITORS,1734701:152720587,"25,000.00",Legal Aid lower crime
MOJ,LAA,26/06/19,Lower Crime,LEGAL AID FUND,CRIMINAL DEFENCE ASSOCIATES LTD,1734706:152720408,"25,000.00",Legal Aid lower crime
MOJ,LAA,26/06/19,Lower Crime,LEGAL AID FUND,MARTYN HEWETT,1736696:152720598,"25,000.00",Legal Aid lower crime
MOJ,LAA,26/06/19,Lower Crime,LEGAL AID FUND,MCLARTYS SOLICITORS,1734762:152720453,"25,000.00",Legal Aid lower crime
MOJ,LAA,26/06/19,Lower Crime,LEGAL AID FUND,OWEN NASH & CO,1734074:152720669,"25,000.00",Legal Aid lower crime
MOJ,LAA,26/06/19,Lower Crime,LEGAL AID FUND,T S LAW LTD,1734420:152720459,"25,000.00",Legal Aid lower crime
MOJ,LAA,26/06/19,Lower Crime,LEGAL AID FUND,THE PURKISS PRACTICE,1734688:152720604,"25,000.00",Legal Aid lower crime
MOJ,LAA,26/06/19,Lower Crime,LEGAL AID FUND,COUSINS TYRER SOLICITORS,1734238:152721093,"25,022.32",Legal Aid lower crime
MOJ,LAA,26/06/19,Legal Help,LEGAL AID FUND,ALASTAIR BATEMAN & CO,1737336:152719473,"25,025.60",Legal Aid legal help
MOJ,LAA,26/06/19,Civil Representation,LEGAL AID FUND,JOHNSON ASTILLS,1737177:3000001156460031,"25,107.09",Legal Aid civil representation
MOJ,LAA,26/06/19,Legal Help,LEGAL AID FUND,PARKER RHODES HICKMOTTS,1738635:152720091,"25,109.76",Legal Aid legal help
MOJ,LAA,26/06/19,Lower Crime,LEGAL AID FUND,K LEGAL SOLICITORS,1737592:152721467,"25,135.16",Legal Aid lower crime
MOJ,LAA,26/06/19,Civil Representation,LEGAL AID FUND,BLACKETT HART & PRATT LLP,1734313:3000003595050012,"25,150.98",Legal Aid civil representation
MOJ,LAA,26/06/19,Legal Help,LEGAL AID FUND,TRP SOLICITORS LTD,1734742:152719250,"25,193.54",Legal Aid legal help
MOJ,LAA,26/06/19,Lower Crime,LEGAL AID FUND,MARTIN MURRAY & ASSOCIATES,1736708:152721224,"25,361.58",Legal Aid lower crime
MOJ,LAA,26/06/19,Lower Crime,LEGAL AID FUND,WALDRONS SOLICITORS LTD,1734088:152721298,"25,376.07",Legal Aid lower crime
MOJ,LAA,26/06/19,Lower Crime,LEGAL AID FUND,JOSEPH HILL & CO,1737075:152720916,"25,379.61",Legal Aid lower crime
MOJ,LAA,26/06/19,Lower Crime,LEGAL AID FUND,ALEXANDER BENNETT,1738781:152720698,"25,400.00",Legal Aid lower crime
MOJ,LAA,26/06/19,Legal Help,LEGAL AID FUND,GREATER MANCHESTER IMMIGRATION UNIT,1737191:152719823,"25,440.89",Legal Aid legal help
MOJ,LAA,26/06/19,Legal Help,LEGAL AID FUND,HENRY HYAMS LTD,1734231:152719486,"25,465.18",Legal Aid legal help
MOJ,LAA,26/06/19,Civil Representation,LEGAL AID FUND,NATIONAL FAMILY MEDIATION,1734952:152721981,"25,488.20",Legal Aid civil representation
MOJ,LAA,26/06/19,Lower Crime,LEGAL AID FUND,BELL LAMB & JOYNSON,1737221:152720589,"25,500.00",Legal Aid lower crime
MOJ,LAA,26/06/19,Lower Crime,LEGAL AID FUND,PETER CLARKE SOLICITORS LLP,1736903:152721212,"25,588.95",Legal Aid lower crime
MOJ,LAA,26/06/19,Legal Help,LEGAL AID FUND,MIGRANT LEGAL PROJECT,1735977:152720085,"25,608.22",Legal Aid legal help
MOJ,LAA,26/06/19,Civil Representation,LEGAL AID FUND,DAVID GRAY LLP,1735776:3000004160300018,"25,610.16",Legal Aid civil representation
MOJ,LAA,26/06/19,Higher Crime,LEGAL AID FUND,DARRYL INGRAM & CO,1734613:152669518,"25,646.30",Legal Aid higher crime
MOJ,LAA,26/06/19,Lower Crime,LEGAL AID FUND,NOBLE SOLICITORS,1738904:152721636,"25,651.74",Legal Aid lower crime
MOJ,LAA,26/06/19,Lower Crime,LEGAL AID FUND,FARLEYS SOLICITORS LLP,1734209:152720555,"25,700.00",Legal Aid lower crime
MOJ,LAA,26/06/19,Lower Crime,LEGAL AID FUND,CARTWRIGHT KING LTD,1737380:152720806,"25,772.16",Legal Aid lower crime
MOJ,LAA,26/06/19,Lower Crime,LEGAL AID FUND,COX BURLEY SOLICITORS,1734779:152721235,"25,788.39",Legal Aid lower crime
MOJ,LAA,26/06/19,Lower Crime,LEGAL AID FUND,GEPP & SONS SOLICITORS LLP,1734384:152720416,"25,800.00",Legal Aid lower crime
MOJ,LAA,26/06/19,Lower Crime,LEGAL AID FUND,ROY FOREMAN & CO SOLICITORS,1734486:152720538,"25,800.00",Legal Aid lower crime
MOJ,LAA,26/06/19,Legal Help,LEGAL AID FUND,PICKUP & SCOTT SOLICITORS,1736766:152719777,"25,824.70",Legal Aid legal help
MOJ,LAA,26/06/19,Civil Representation,LEGAL AID FUND,OSBORNES SOLICITORS LLP,1736657:152709565,"25,838.40",Legal Aid civil representation
MOJ,LAA,26/06/19,Lower Crime,LEGAL AID FUND,SHELLEY & CO,1734472:152720869,"25,845.58",Legal Aid lower crime
MOJ,LAA,26/06/19,Legal Help,LEGAL AID FUND,SOUTHERNS SOLICITORS LTD,1736964:152719633,"25,883.16",Legal Aid legal help
MOJ,LAA,26/06/19,Lower Crime,LEGAL AID FUND,WATERS MOORE AT THE LAW CHAMBER,1734738:152721238,"25,885.30",Legal Aid lower crime
MOJ,LAA,26/06/19,Lower Crime,LEGAL AID FUND,SMITH DAWSON,1734045:152721283,"25,923.15",Legal Aid lower crime
MOJ,LAA,26/06/19,Lower Crime,LEGAL AID FUND,KELLOCKS,1737234:152721129,"25,952.51",Legal Aid lower crime
MOJ,LAA,26/06/19,Legal Help,LEGAL AID FUND,BHATIA BEST LTD,1737037:152719710,"25,997.18",Legal Aid legal help
MOJ,LAA,26/06/19,Lower Crime,LEGAL AID FUND,ALLEN HOOLE LTD,1737024:152720631,"26,000.00",Legal Aid lower crime
MOJ,LAA,26/06/19,Lower Crime,LEGAL AID FUND,STEPHEN RIMMER LLP,1734457:152720596,"26,000.00",Legal Aid lower crime
MOJ,LAA,26/06/19,Lower Crime,LEGAL AID FUND,HOWELL HYLTON LTD,1737140:152721234,"26,013.18",Legal Aid lower crime
MOJ,LAA,26/06/19,Legal Help,LEGAL AID FUND,TURPIN & MILLER LLP,1734531:152719789,"26,060.33",Legal Aid legal help
MOJ,LAA,26/06/19,Higher Crime,LEGAL AID FUND,WATSON WOODHOUSE LTD,1736981:152677660,"26,176.80",Legal Aid higher crime
MOJ,LAA,26/06/19,Lower Crime,LEGAL AID FUND,STRAW & PEARCE,1734408:152720389,"26,200.00",Legal Aid lower crime
MOJ,LAA,26/06/19,Lower Crime,LEGAL AID FUND,THE JOHNSON PARTNERSHIP,1736166:152721584,"26,264.56",Legal Aid lower crime
MOJ,LAA,26/06/19,Civil Representation,LEGAL AID FUND,HANNE & CO,1736672:152672415,"26,267.68",Legal Aid civil representation
MOJ,LAA,26/06/19,Lower Crime,LEGAL AID FUND,NEEDHAM POULIER LTD,1734584:152720983,"26,279.01",Legal Aid lower crime
MOJ,LAA,26/06/19,Lower Crime,LEGAL AID FUND,DANIEL WOODMAN & CO LTD,1734533:152720634,"26,300.00",Legal Aid lower crime
MOJ,LAA,26/06/19,Higher Crime,LEGAL AID FUND,WOOLFE & CO SOLICITORS LTD,1738834:152695970,"26,470.81",Legal Aid higher crime
MOJ,LAA,26/06/19,Civil Representation,LEGAL AID FUND,DYMPNA HOWELLS,1737701:3000002618270014,"26,589.60",Legal Aid civil representation
MOJ,LAA,26/06/19,Lower Crime,LEGAL AID FUND,ALBIN & CO LTD,1738915:152721651,"26,744.64",Legal Aid lower crime
MOJ,LAA,26/06/19,Lower Crime,LEGAL AID FUND,SWINBURNE SNOWBALL & JACKSON,1736992:152721011,"26,751.09",Legal Aid lower crime
MOJ,LAA,26/06/19,Legal Help,LEGAL AID FUND,CAMPBELL TAYLOR SOLICITORS,1736876:152719568,"26,855.82",Legal Aid legal help
MOJ,LAA,26/06/19,Legal Help,LEGAL AID FUND,DH LAW LTD,1734964:152719928,"26,858.94",Legal Aid legal help
MOJ,LAA,26/06/19,Lower Crime,LEGAL AID FUND,TUCKERS SOLICITORS LLP,1737582:152720969,"26,864.06",Legal Aid lower crime
MOJ,LAA,26/06/19,Lower Crime,LEGAL AID FUND,HGH CRIMINAL DEFENCE SOLICITORS,1737661:152721396,"26,864.17",Legal Aid lower crime
MOJ,LAA,26/06/19,Higher Crime,LEGAL AID FUND,QAMAR SOLICITORS LLP,1737253:152714724,"26,893.52",Legal Aid higher crime
MOJ,LAA,26/06/19,Lower Crime,LEGAL AID FUND,HARRINGTONS LEGAL LLP,1734366:152720671,"26,900.00",Legal Aid lower crime
MOJ,LAA,26/06/19,Legal Help,LEGAL AID FUND,LEVY & CO SOLICITORS LLP,1737536:152720116,"26,906.76",Legal Aid legal help
MOJ,LAA,26/06/19,Higher Crime,LEGAL AID FUND,MICHAEL G BROMLEY-MARTIN QC,1735039:152725388,"27,000.00",Legal Aid higher crime
MOJ,LAA,26/06/19,Lower Crime,LEGAL AID FUND,WHELDON LAW,1734291:152720409,"27,000.00",Legal Aid lower crime
MOJ,LAA,26/06/19,Civil Representation,LEGAL AID FUND,BLACKWHITE SOLICITORS LTD,1737605:3000002740090009,"27,056.05",Legal Aid civil representation
MOJ,LAA,26/06/19,Civil Representation,LEGAL AID FUND,BDH SOLICITORS LTD,1734151:3000003088990017,"27,061.79",Legal Aid civil representation
MOJ,LAA,26/06/19,Higher Crime,LEGAL AID FUND,WILLIAM DAVIS,1737686:152686214,"27,074.40",Legal Aid higher crime
MOJ,LAA,26/06/19,Lower Crime,LEGAL AID FUND,DAVID AKE & CO,1734237:152721092,"27,075.43",Legal Aid lower crime
MOJ,LAA,26/06/19,Legal Help,LEGAL AID FUND,STERNBERG REED SOLICITORS,1737521:152719797,"27,087.96",Legal Aid legal help
MOJ,LAA,26/06/19,Lower Crime,LEGAL AID FUND,GRAHAME STOWE BATESON,1736062:152721094,"27,090.97",Legal Aid lower crime
MOJ,LAA,26/06/19,Higher Crime,LEGAL AID FUND,ALLEN HOOLE LTD,1737024:152696127,"27,133.44",Legal Aid higher crime
MOJ,LAA,26/06/19,Lower Crime,LEGAL AID FUND,GOLDKORNS,1734857:152721358,"27,154.70",Legal Aid lower crime
MOJ,LAA,26/06/19,Civil Representation,LEGAL AID FUND,LILLYWHITE WILLIAMS & CO,1736778:3000003791190017,"27,162.98",Legal Aid civil representation
MOJ,LAA,26/06/19,Civil Representation,LEGAL AID FUND,SUSAN D STAMFORD,1735212:3000002899020002,"27,302.40",Legal Aid civil representation
MOJ,LAA,26/06/19,Lower Crime,LEGAL AID FUND,JOHNSON ASTILLS,1737177:152720785,"27,366.39",Legal Aid lower crime
MOJ,LAA,26/06/19,Higher Crime,LEGAL AID FUND,SVS SOLICITORS,1737560:152715031,"27,391.06",Legal Aid higher crime
MOJ,LAA,26/06/19,Lower Crime,LEGAL AID FUND,GRAHAM & CO SOLICITORS LTD,1736333:152721827,"27,393.41",Legal Aid lower crime
MOJ,LAA,26/06/19,Lower Crime,LEGAL AID FUND,REEDS SOLICITORS LLP,1735720:152722337,"27,415.60",Legal Aid lower crime
MOJ,LAA,26/06/19,Higher Crime,LEGAL AID FUND,DARRON WHITEHEAD,1735310:152678034,"27,450.00",Legal Aid higher crime
MOJ,LAA,26/06/19,Legal Help,LEGAL AID FUND,JOHN BLACK SOLICITORS LTD,1736245:152720213,"27,486.88",Legal Aid legal help
MOJ,LAA,26/06/19,Lower Crime,LEGAL AID FUND,MANN & CO SOLICITORS LTD,1737303:152720649,"27,500.00",Legal Aid lower crime
MOJ,LAA,26/06/19,Higher Crime,LEGAL AID FUND,DANIEL S W JONES,1736188:152713980,"27,564.00",Legal Aid higher crime
MOJ,LAA,26/06/19,Higher Crime,LEGAL AID FUND,KEVIN I TOOMEY,1738178:152686343,"27,564.00",Legal Aid higher crime
MOJ,LAA,26/06/19,Lower Crime,LEGAL AID FUND,CRIMINAL DEFENCE SOLICITORS,1737468:152720470,"27,600.00",Legal Aid lower crime
MOJ,LAA,26/06/19,Lower Crime,LEGAL AID FUND,SMITH PARTNERSHIP,1734656:152720401,"27,600.00",Legal Aid lower crime
MOJ,LAA,26/06/19,Lower Crime,LEGAL AID FUND,CARR & CO,1736928:152720532,"27,672.00",Legal Aid lower crime
MOJ,LAA,26/06/19,Lower Crime,LEGAL AID FUND,JOHN ONIONS SOLICITORS,1736881:152721281,"27,672.59",Legal Aid lower crime
MOJ,LAA,26/06/19,Lower Crime,LEGAL AID FUND,KESAR & CO SOLICITORS,1737597:152721469,"27,721.47",Legal Aid lower crime
MOJ,LAA,26/06/19,Legal Help,LEGAL AID FUND,CONFREYS,1736809:152719389,"27,748.53",Legal Aid legal help
MOJ,LAA,26/06/19,Lower Crime,LEGAL AID FUND,BRADY EASTWOOD PIERCE & STEWART,1734015:152720948,"27,815.44",Legal Aid lower crime
MOJ,LAA,26/06/19,Lower Crime,LEGAL AID FUND,HAY & KILNER LLP,1734300:152721035,"27,863.67",Legal Aid lower crime
MOJ,LAA,26/06/19,Civil Representation,LEGAL AID FUND,BARRETT & THOMSON,1733958:3000002191360031,"27,890.47",Legal Aid civil representation
MOJ,LAA,26/06/19,Civil Representation,LEGAL AID FUND,HANNAH METTAM,1737736:3000002168040005,"27,949.32",Legal Aid civil representation
MOJ,LAA,26/06/19,Legal Help,LEGAL AID FUND,ISON HARRISON LTD,1737309:152719491,"27,957.81",Legal Aid legal help
MOJ,LAA,26/06/19,Legal Help,LEGAL AID FUND,SWITALSKI'S SOLICITORS LTD,1734239:152719471,"28,026.16",Legal Aid legal help
MOJ,LAA,26/06/19,Legal Help,LEGAL AID FUND,NOBLE SOLICITORS,1734471:152719803,"28,073.65",Legal Aid legal help
MOJ,LAA,26/06/19,Legal Help,LEGAL AID FUND,WICK & CO,1736661:152719550,"28,081.48",Legal Aid legal help
MOJ,LAA,26/06/19,Civil Representation,LEGAL AID FUND,DEBORAH BRYAN,1735027:3000003102610045,"28,090.90",Legal Aid civil representation
MOJ,LAA,26/06/19,Lower Crime,LEGAL AID FUND,TILLY BAILEY & IRVINE LLP,1734296:152720506,"28,100.00",Legal Aid lower crime
MOJ,LAA,26/06/19,Higher Crime,LEGAL AID FUND,BREYDONS SOLICITORS LTD,1736063:152714086,"28,106.81",Legal Aid higher crime
MOJ,LAA,26/06/19,Lower Crime,LEGAL AID FUND,M K LAW SOLICITORS LTD,1738464:152721613,"28,151.16",Legal Aid lower crime
MOJ,LAA,26/06/19,Lower Crime,LEGAL AID FUND,VYMAN SOLICITORS LTD,1737391:152721181,"28,157.71",Legal Aid lower crime
MOJ,LAA,26/06/19,Civil Representation,LEGAL AID FUND,FISHER JONES GREENWOOD LLP,1737462:3000001186860045,"28,181.02",Legal Aid civil representation
MOJ,LAA,26/06/19,Lower Crime,LEGAL AID FUND,BHATIA BEST LTD,1737038:152720385,"28,200.00",Legal Aid lower crime
MOJ,LAA,26/06/19,Civil Representation,LEGAL AID FUND,LICHFIELD REYNOLDS LLP,1734608:152722591,"28,218.41",Legal Aid civil representation
MOJ,LAA,26/06/19,Legal Help,LEGAL AID FUND,DAVID GRAY LLP,1737333:152719694,"28,221.35",Legal Aid legal help
MOJ,LAA,26/06/19,Lower Crime,LEGAL AID FUND,RICHARD BODY LAW LTD,1734546:152720597,"28,300.00",Legal Aid lower crime
MOJ,LAA,26/06/19,Higher Crime,LEGAL AID FUND,POWELL SPENCER AND PARTNERS,1736760:152669860,"28,341.64",Legal Aid higher crime
MOJ,LAA,26/06/19,Lower Crime,LEGAL AID FUND,REEVES  & CO SOLICITORS,1737554:152721190,"28,436.73",Legal Aid lower crime
MOJ,LAA,26/06/19,Legal Help,LEGAL AID FUND,BRAITCH SOLICITORS (RB SOLICITORS),1737425:152719231,"28,464.84",Legal Aid legal help
MOJ,LAA,26/06/19,Lower Crime,LEGAL AID FUND,CJH SOLICITORS,1737298:152720402,"28,500.00",Legal Aid lower crime
MOJ,LAA,26/06/19,Lower Crime,LEGAL AID FUND,HERMANS,1737358:152720559,"28,500.00",Legal Aid lower crime
MOJ,LAA,26/06/19,Lower Crime,LEGAL AID FUND,HOWELLS LLP,1734247:152720527,"28,500.00",Legal Aid lower crime
MOJ,LAA,26/06/19,Civil Representation,LEGAL AID FUND,GILES D BAIN,1738004:3000002134880007,"28,512.00",Legal Aid civil representation
MOJ,LAA,26/06/19,Legal Help,LEGAL AID FUND,JACKSON LEES GROUP LTD,1736003:152720066,"28,515.24",Legal Aid legal help
MOJ,LAA,26/06/19,Lower Crime,LEGAL AID FUND,BAL DHALIWAL SOLICITORS,1737252:152720871,"28,558.65",Legal Aid lower crime
MOJ,LAA,26/06/19,Higher Crime,LEGAL AID FUND,PAUL C WALKER,1738292:152678701,"28,770.00",Legal Aid higher crime
MOJ,LAA,26/06/19,Legal Help,LEGAL AID FUND,MIGRANT LEGAL PROJECT,1735804:152720004,"28,778.32",Legal Aid legal help
MOJ,LAA,26/06/19,Lower Crime,LEGAL AID FUND,COBLEYS SOLICITORS LTD,1734578:152721004,"28,781.88",Legal Aid lower crime
MOJ,LAA,26/06/19,Lower Crime,LEGAL AID FUND,ELLIOT MATHER LLP,1737108:152720398,"28,800.00",Legal Aid lower crime
MOJ,LAA,26/06/19,Lower Crime,LEGAL AID FUND,QUALITYSOLICITORS KNIGHT POLSON,1738959:152720702,"28,800.00",Legal Aid lower crime
MOJ,LAA,26/06/19,Lower Crime,LEGAL AID FUND,LEVY & CO SOLICITORS LLP,1737536:152720841,"28,801.62",Legal Aid lower crime
MOJ,LAA,26/06/19,Legal Help,LEGAL AID FUND,VIRGO SOLICITORS LTD,1738703:152720107,"28,808.92",Legal Aid legal help
MOJ,LAA,26/06/19,Higher Crime,LEGAL AID FUND,BEN HOARE BELL LLP,1735791:152668546,"28,813.57",Legal Aid higher crime
MOJ,LAA,26/06/19,Higher Crime,LEGAL AID FUND,CORKER BINNING,1734669:152724605,"28,821.00",Legal Aid higher crime
MOJ,LAA,26/06/19,Higher Crime,LEGAL AID FUND,KENNETH M BARROW & CO,1736979:152686854,"28,886.17",Legal Aid higher crime
MOJ,LAA,26/06/19,Lower Crime,LEGAL AID FUND,PARDOES SOLICITORS LLP,1737514:152721492,"28,928.40",Legal Aid lower crime
MOJ,LAA,26/06/19,Legal Help,LEGAL AID FUND,HUNT & COOMBS LLP,1734377:152719374,"28,940.20",Legal Aid legal help
MOJ,LAA,26/06/19,Lower Crime,LEGAL AID FUND,FORBES SOLICITORS,1734434:152720565,"29,000.00",Legal Aid lower crime
MOJ,LAA,26/06/19,Lower Crime,LEGAL AID FUND,OBW PERERA LTD,1734686:152720417,"29,000.00",Legal Aid lower crime
MOJ,LAA,26/06/19,Lower Crime,LEGAL AID FUND,ROSS SOLICITORS LTD,1736792:152720638,"29,000.00",Legal Aid lower crime
MOJ,LAA,26/06/19,Lower Crime,LEGAL AID FUND,TAYLOR STREET SOLICITORS LLP,1734267:152720601,"29,000.00",Legal Aid lower crime
MOJ,LAA,26/06/19,Lower Crime,LEGAL AID FUND,GRECH GOODEN SOLICITORS LTD,1737544:152720756,"29,099.88",Legal Aid lower crime
MOJ,LAA,26/06/19,Lower Crime,LEGAL AID FUND,CRIMINAL DEFENCE MILTON KEYNES LTD,1737501:152720613,"29,100.00",Legal Aid lower crime
MOJ,LAA,26/06/19,Lower Crime,LEGAL AID FUND,VCW LAW LTD,1734315:152720490,"29,100.00",Legal Aid lower crime
MOJ,LAA,26/06/19,Lower Crime,LEGAL AID FUND,VHS FLETCHERS,1738855:152720700,"29,100.00",Legal Aid lower crime
MOJ,LAA,26/06/19,Lower Crime,LEGAL AID FUND,PARKER BIRD WHITELEY,1737424:152721084,"29,139.15",Legal Aid lower crime
MOJ,LAA,26/06/19,Lower Crime,LEGAL AID FUND,HUMPHRYS DAWSON,1734607:152720763,"29,179.25",Legal Aid lower crime
MOJ,LAA,26/06/19,Lower Crime,LEGAL AID FUND,PETHERBRIDGE BASSRA SOLICITORS LTD,1737329:152721080,"29,209.04",Legal Aid lower crime
MOJ,LAA,26/06/19,Lower Crime,LEGAL AID FUND,RUSSELL & RUSSELL SOLICITORS LLP,1734203:152721350,"29,231.71",Legal Aid lower crime
MOJ,LAA,26/06/19,Lower Crime,LEGAL AID FUND,G T STEWART LTD,1736338:152721832,"29,318.65",Legal Aid lower crime
MOJ,LAA,26/06/19,Lower Crime,LEGAL AID FUND,MCSORLEY LEWIS LAW LTD,1736802:152720748,"29,580.54",Legal Aid lower crime
MOJ,LAA,26/06/19,Lower Crime,LEGAL AID FUND,TUCKERS SOLICITORS LLP,1738993:152721619,"29,605.29",Legal Aid lower crime
MOJ,LAA,26/06/19,Lower Crime,LEGAL AID FUND,ABR SOLICITORS,1737326:152721095,"29,609.29",Legal Aid lower crime
MOJ,LAA,26/06/19,Higher Crime,LEGAL AID FUND,ABDUL LATIF SHAKOOR,1735753:152686446,"29,699.95",Legal Aid higher crime
MOJ,LAA,26/06/19,Legal Help,LEGAL AID FUND,WILSON SOLICITORS LLP,1735992:152720108,"29,816.14",Legal Aid legal help
MOJ,LAA,26/06/19,Civil Representation,LEGAL AID FUND,EDWARD OLIVER & BELLIS,1736715:152638014,"29,827.95",Legal Aid civil representation
MOJ,LAA,26/06/19,Lower Crime,LEGAL AID FUND,STEPHENSONS SOLICITORS LLP,1736845:152721119,"29,840.56",Legal Aid lower crime
MOJ,LAA,26/06/19,Lower Crime,LEGAL AID FUND,HINE SOLICITORS,1734845:152721410,"29,886.57",Legal Aid lower crime
MOJ,LAA,26/06/19,Legal Help,LEGAL AID FUND,BUTLER & CO,1737456:152719071,"30,000.00",Legal Aid legal help
MOJ,LAA,26/06/19,Legal Help,LEGAL AID FUND,SWAIN & CO SOLICITORS,1737364:152719184,"30,000.00",Legal Aid legal help
MOJ,LAA,26/06/19,Lower Crime,LEGAL AID FUND,ALLEN HOOLE LTD,1737575:152720636,"30,000.00",Legal Aid lower crime
MOJ,LAA,26/06/19,Lower Crime,LEGAL AID FUND,LUMB & MACGILL,1737331:152720533,"30,000.00",Legal Aid lower crime
MOJ,LAA,26/06/19,Lower Crime,LEGAL AID FUND,S A LAW CHAMBERS SOLICITORS,1734536:152720426,"30,000.00",Legal Aid lower crime
MOJ,LAA,26/06/19,Lower Crime,LEGAL AID FUND,TUCKERS SOLICITORS LLP,1736974:152720662,"30,000.00",Legal Aid lower crime
MOJ,LAA,26/06/19,Lower Crime,LEGAL AID FUND,DALTON HOLMES GRAY,1734509:152720965,"30,078.35",Legal Aid lower crime
MOJ,LAA,26/06/19,Legal Help,LEGAL AID FUND,LISA MARIE MCNULTY SOLICITOR,1734423:152719624,"30,166.16",Legal Aid legal help
MOJ,LAA,26/06/19,Higher Crime,LEGAL AID FUND,SONAL DASHANI,1738317:152714814,"30,279.26",Legal Aid higher crime
MOJ,LAA,26/06/19,Legal Help,LEGAL AID FUND,J D SPICER ZEB,1736762:152719555,"30,305.88",Legal Aid legal help
MOJ,LAA,26/06/19,Lower Crime,LEGAL AID FUND,HINE SOLICITORS,1738899:152721874,"30,454.86",Legal Aid lower crime
MOJ,LAA,26/06/19,Civil Representation,LEGAL AID FUND,TURPIN & MILLER LLP,1734531:152718574,"30,455.46",Legal Aid civil representation
MOJ,LAA,26/06/19,Legal Help,LEGAL AID FUND,HAMPSHIRE LAW,1736409:152720197,"30,512.65",Legal Aid legal help
MOJ,LAA,26/06/19,Lower Crime,LEGAL AID FUND,DJMS SOLICITORS LTD,1734844:152721024,"30,575.52",Legal Aid lower crime
MOJ,LAA,26/06/19,Lower Crime,LEGAL AID FUND,THOMAS BOYD WHYTE SOLICITORS,1736646:152720913,"30,586.43",Legal Aid lower crime
MOJ,LAA,26/06/19,Lower Crime,LEGAL AID FUND,STEVEN YOUNG & CO INC ROWBIS,1737366:152721264,"30,636.12",Legal Aid lower crime
MOJ,LAA,26/06/19,Lower Crime,LEGAL AID FUND,LEVY & CO SOLICITORS LLP,1737496:152720413,"30,700.00",Legal Aid lower crime
MOJ,LAA,26/06/19,Lower Crime,LEGAL AID FUND,GEOFF WHITE & CO,1737505:152721197,"30,847.66",Legal Aid lower crime
MOJ,LAA,26/06/19,Lower Crime,LEGAL AID FUND,DODDS SOLICITORS LLP,1734336:152720786,"30,861.14",Legal Aid lower crime
MOJ,LAA,26/06/19,Legal Help,LEGAL AID FUND,KESAR & CO SOLICITORS,1737597:152720123,"30,887.29",Legal Aid legal help
MOJ,LAA,26/06/19,Legal Help,LEGAL AID FUND,MIGRANT LEGAL PROJECT,1735976:152720086,"30,889.98",Legal Aid legal help
MOJ,LAA,26/06/19,Legal Help,LEGAL AID FUND,LUQMANI THOMPSON & PARTNERS,1734582:152719525,"31,161.44",Legal Aid legal help
MOJ,LAA,26/06/19,Lower Crime,LEGAL AID FUND,M & A SOLICITORS,1737101:152720530,"31,200.00",Legal Aid lower crime
MOJ,LAA,26/06/19,Legal Help,LEGAL AID FUND,MENTAL HEALTH LEGAL REPRESENTATION LTD,1734702:152719717,"31,210.18",Legal Aid legal help
MOJ,LAA,26/06/19,Higher Crime,LEGAL AID FUND,JMW SOLICITORS LLP,1736840:152714166,"31,296.00",Legal Aid higher crime
MOJ,LAA,26/06/19,Lower Crime,LEGAL AID FUND,GHP LEGAL,1737282:152720382,"31,300.00",Legal Aid lower crime
MOJ,LAA,26/06/19,Lower Crime,LEGAL AID FUND,TAYLOR HALDANE BARLEX LLP,1737296:152720861,"31,302.01",Legal Aid lower crime
MOJ,LAA,26/06/19,Lower Crime,LEGAL AID FUND,M K LAW SOLICITORS LTD,1737650:152721417,"31,360.07",Legal Aid lower crime
MOJ,LAA,26/06/19,Lower Crime,LEGAL AID FUND,REEDS SOLICITORS LLP,1734818:152722489,"31,479.08",Legal Aid lower crime
MOJ,LAA,26/06/19,Higher Crime,LEGAL AID FUND,MBC SOLICITORS LTD,1734750:152686426,"31,532.34",Legal Aid higher crime
MOJ,LAA,26/06/19,Civil Representation,LEGAL AID FUND,HILARY J BEECHEY,1735439:3000001702380019,"31,590.00",Legal Aid civil representation
MOJ,LAA,26/06/19,Lower Crime,LEGAL AID FUND,DUNCAN LEWIS SOLICITORS  LTD,1734927:152721891,"31,728.59",Legal Aid lower crime
MOJ,LAA,26/06/19,Lower Crime,LEGAL AID FUND,MCMILLAN WILLIAMS SOLICITORS LTD,1736232:152721717,"31,793.64",Legal Aid lower crime
MOJ,LAA,26/06/19,Civil Representation,LEGAL AID FUND,GWB HARTHILLS LLP,1737574:3000003351370078,"31,849.13",Legal Aid civil representation
MOJ,LAA,26/06/19,Higher Crime,LEGAL AID FUND,HUSSAIN SOLICITORS LTD,1737398:152677234,"31,907.06",Legal Aid higher crime
MOJ,LAA,26/06/19,Legal Help,LEGAL AID FUND,BINDMANS LLP,1734446:152719118,"32,000.00",Legal Aid legal help
MOJ,LAA,26/06/19,Lower Crime,LEGAL AID FUND,LHD SOLICITORS LTD,1737482:152720550,"32,000.00",Legal Aid lower crime
MOJ,LAA,26/06/19,Lower Crime,LEGAL AID FUND,RILEY HAYES & CO,1734466:152720679,"32,000.00",Legal Aid lower crime
MOJ,LAA,26/06/19,Lower Crime,LEGAL AID FUND,LLM SOLICITORS (LONDON) LTD,1734807:152721461,"32,022.14",Legal Aid lower crime
MOJ,LAA,26/06/19,Lower Crime,LEGAL AID FUND,BJ & CO SOLICITORS LTD T/A  BRIAN JACKSON & CO,1737339:152720489,"32,100.00",Legal Aid lower crime
MOJ,LAA,26/06/19,Lower Crime,LEGAL AID FUND,TEESSIDE LAW LTD,1738784:152721530,"32,195.83",Legal Aid lower crime
MOJ,LAA,26/06/19,Civil Representation,LEGAL AID FUND,PENELOPE A M HOWE,1735535:3000003254190013,"32,210.88",Legal Aid civil representation
MOJ,LAA,26/06/19,Higher Crime,LEGAL AID FUND,JAMES MURRAY SOLICITORS,1737231:152669521,"32,237.23",Legal Aid higher crime
MOJ,LAA,26/06/19,Lower Crime,LEGAL AID FUND,BAINS SOLICITORS,1737286:152720795,"32,439.42",Legal Aid lower crime
MOJ,LAA,26/06/19,Lower Crime,LEGAL AID FUND,HENRY HYAMS LTD,1734231:152721091,"32,451.67",Legal Aid lower crime
MOJ,LAA,26/06/19,Lower Crime,LEGAL AID FUND,OSLERS SOLICITORS,1737589:152720856,"32,457.32",Legal Aid lower crime
MOJ,LAA,26/06/19,Lower Crime,LEGAL AID FUND,O'NEILL WRIGHT & NASH,1737621:152721357,"32,490.41",Legal Aid lower crime
MOJ,LAA,26/06/19,Legal Help,LEGAL AID FUND,BISON SOLICITORS LTD,1739214:152720234,"32,563.57",Legal Aid legal help
MOJ,LAA,26/06/19,Civil Representation,LEGAL AID FUND,SAMANTHA J BOWCOCK,1737820:3000003227440019,"32,623.28",Legal Aid civil representation
MOJ,LAA,26/06/19,Lower Crime,LEGAL AID FUND,TAIT FARRIER GRAHAM,1737012:152720510,"32,700.00",Legal Aid lower crime
MOJ,LAA,26/06/19,Lower Crime,LEGAL AID FUND,ALLEN HOOLE LTD,1736268:152721703,"32,766.20",Legal Aid lower crime
MOJ,LAA,26/06/19,Lower Crime,LEGAL AID FUND,EVANS HAYES BURNELL SOLICITORS LTD,1736353:152721631,"32,862.54",Legal Aid lower crime
MOJ,LAA,26/06/19,Lower Crime,LEGAL AID FUND,HORSMAN SOLICITORS LTD,1736968:152721191,"32,881.68",Legal Aid lower crime
MOJ,LAA,26/06/19,Higher Crime,LEGAL AID FUND,APPLEBY SHAW LTD,1738897:152686280,"32,920.76",Legal Aid higher crime
MOJ,LAA,26/06/19,Lower Crime,LEGAL AID FUND,JOHN DELANEY & CO SOLICITORS,1737308:152720541,"33,000.00",Legal Aid lower crime
MOJ,LAA,26/06/19,Lower Crime,LEGAL AID FUND,WAINWRIGHT & CUMMINS LLP,1734614:152720477,"33,000.00",Legal Aid lower crime
MOJ,LAA,26/06/19,Lower Crime,LEGAL AID FUND,REEDS SOLICITORS LLP,1739030:152722129,"33,023.16",Legal Aid lower crime
MOJ,LAA,26/06/19,Civil Representation,LEGAL AID FUND,KUNDERT SOLICITORS LLP,1736885:3000001595350051,"33,114.54",Legal Aid civil representation
MOJ,LAA,26/06/19,Civil Representation,LEGAL AID FUND,EATON SMITH LLP,1736930:3000002593010045,"33,153.67",Legal Aid civil representation
MOJ,LAA,26/06/19,Lower Crime,LEGAL AID FUND,BELMORES SOLICITORS LTD,1737461:152720845,"33,306.28",Legal Aid lower crime
MOJ,LAA,26/06/19,Legal Help,LEGAL AID FUND,HOWELLS LLP,1734246:152719089,"33,500.00",Legal Aid legal help
MOJ,LAA,26/06/19,Lower Crime,LEGAL AID FUND,MICHAEL PURDON,1736986:152721039,"33,619.10",Legal Aid lower crime
MOJ,LAA,26/06/19,Legal Help,LEGAL AID FUND,THALIWAL & VEJA SOLICITORS,1737322:152719715,"33,693.69",Legal Aid legal help
MOJ,LAA,26/06/19,Lower Crime,LEGAL AID FUND,HASKELL & CO,1734744:152721188,"33,749.67",Legal Aid lower crime
MOJ,LAA,26/06/19,Civil Representation,LEGAL AID FUND,PUNCH ROBSON SOLICITORS,1736927:3000002904870022,"33,817.52",Legal Aid civil representation
MOJ,LAA,26/06/19,Higher Crime,LEGAL AID FUND,BJ & CO SOLICITORS LTD T/A  BRIAN JACKSON & CO,1737339:152687208,"33,839.26",Legal Aid higher crime
MOJ,LAA,26/06/19,Higher Crime,LEGAL AID FUND,Q & A LEGAL LTD,1736284:152695971,"33,973.10",Legal Aid higher crime
MOJ,LAA,26/06/19,Lower Crime,LEGAL AID FUND,GOODALL BARNETT JAMES SOLICITORS,1736924:152720595,"34,000.00",Legal Aid lower crime
MOJ,LAA,26/06/19,Lower Crime,LEGAL AID FUND,CLARKE KIERNAN LLP,1734586:152721184,"34,010.83",Legal Aid lower crime
MOJ,LAA,26/06/19,Lower Crime,LEGAL AID FUND,SOUTHERNS SOLICITORS LTD,1736964:152721149,"34,126.35",Legal Aid lower crime
MOJ,LAA,26/06/19,Civil Representation,LEGAL AID FUND,T V EDWARDS LLP,1734156:3000002591290016,"34,139.06",Legal Aid civil representation
MOJ,LAA,26/06/19,Lower Crime,LEGAL AID FUND,MCGRATH & CO SOLICITORS,1734677:152720659,"34,200.00",Legal Aid lower crime
MOJ,LAA,26/06/19,Legal Help,LEGAL AID FUND,WILSON SOLICITORS LLP,1735991:152720109,"34,253.78",Legal Aid legal help
MOJ,LAA,26/06/19,Civil Representation,LEGAL AID FUND,CROCKETT LIMITED TA CROCKETT & CO SOLICITORS,1734321:3000002677470015,"34,290.03",Legal Aid civil representation
MOJ,LAA,26/06/19,Lower Crime,LEGAL AID FUND,BOBBETTS MACKAN,1736775:152720629,"34,400.00",Legal Aid lower crime
MOJ,LAA,26/06/19,Civil Representation,LEGAL AID FUND,GARFIELD Z BRAITHWAITE,1738035:3000001112120008,"34,635.60",Legal Aid civil representation
MOJ,LAA,26/06/19,Lower Crime,LEGAL AID FUND,KIRWANS,1734447:152720995,"34,649.13",Legal Aid lower crime
MOJ,LAA,26/06/19,Higher Crime,LEGAL AID FUND,SPERRIN  LAW LTD,1739036:152696237,"34,830.65",Legal Aid higher crime
MOJ,LAA,26/06/19,Higher Crime,LEGAL AID FUND,FRAME SMITH SOLICITORS,1737245:152676976,"34,910.40",Legal Aid higher crime
MOJ,LAA,26/06/19,Lower Crime,LEGAL AID FUND,CONNOR ROSS-BROWN SOLICITORS,1735760:152720695,"35,000.00",Legal Aid lower crime
MOJ,LAA,26/06/19,Lower Crime,LEGAL AID FUND,GEOFFREY FORRESTER & CO,1736938:152720500,"35,000.00",Legal Aid lower crime
MOJ,LAA,26/06/19,Lower Crime,LEGAL AID FUND,ROWE SPARKES SOLICITORS LTD,1737472:152720612,"35,000.00",Legal Aid lower crime
MOJ,LAA,26/06/19,Higher Crime,LEGAL AID FUND,JEREMY P WAINWRIGHT,1734985:152677737,"35,040.00",Legal Aid higher crime
MOJ,LAA,26/06/19,Higher Crime,LEGAL AID FUND,THE JOHNSON PARTNERSHIP,1734410:152669542,"35,175.17",Legal Aid higher crime
MOJ,LAA,26/06/19,Higher Crime,LEGAL AID FUND,MICHAEL P HAYTON,1735262:152714209,"35,370.85",Legal Aid higher crime
MOJ,LAA,26/06/19,Legal Help,LEGAL AID FUND,LEONARD CANNINGS SOLICITORS LLP,1737359:152719768,"35,406.20",Legal Aid legal help
MOJ,LAA,26/06/19,Higher Crime,LEGAL AID FUND,TIMOTHY J CRAY,1738614:152669699,"35,460.00",Legal Aid higher crime
MOJ,LAA,26/06/19,Lower Crime,LEGAL AID FUND,LAWTONS SOLICITORS LTD,1734804:152720689,"35,500.00",Legal Aid lower crime
MOJ,LAA,26/06/19,Higher Crime,LEGAL AID FUND,IAN PERSAUD SOLICITOR,1737356:152696018,"35,645.33",Legal Aid higher crime
MOJ,LAA,26/06/19,Higher Crime,LEGAL AID FUND,HUGH C DAVIES,1735059:152678163,"35,711.60",Legal Aid higher crime
MOJ,LAA,26/06/19,Lower Crime,LEGAL AID FUND,EBR ATTRIDGE LLP,1737406:152720896,"35,811.52",Legal Aid lower crime
MOJ,LAA,26/06/19,Lower Crime,LEGAL AID FUND,NORRIE WAITE & SLATER,1737100:152720522,"36,000.00",Legal Aid lower crime
MOJ,LAA,26/06/19,Lower Crime,LEGAL AID FUND,BHATIA BEST LTD,1737039:152720387,"36,200.00",Legal Aid lower crime
MOJ,LAA,26/06/19,Lower Crime,LEGAL AID FUND,MESSRS WATERFORDS SOLICITORS,1734099:152720929,"36,274.62",Legal Aid lower crime
MOJ,LAA,26/06/19,Lower Crime,LEGAL AID FUND,ROBERTSON'S SOLICITORS,1734355:152720529,"36,300.00",Legal Aid lower crime
MOJ,LAA,26/06/19,Lower Crime,LEGAL AID FUND,TAYLOR HALDANE BARLEX LLP,1735633:152721503,"36,340.66",Legal Aid lower crime
MOJ,LAA,26/06/19,Higher Crime,LEGAL AID FUND,JENNIFER M P DEMPSTER,1738099:152677426,"36,480.00",Legal Aid higher crime
MOJ,LAA,26/06/19,Higher Crime,LEGAL AID FUND,MICHAEL J IVERS,1738625:152686681,"36,480.00",Legal Aid higher crime
MOJ,LAA,26/06/19,Legal Help,LEGAL AID FUND,GUILE NICHOLAS-INC DONALD GALBRAITH & CO,1738747:152720156,"36,518.79",Legal Aid legal help
MOJ,LAA,26/06/19,Civil Representation,LEGAL AID FUND,WOLFERSTANS,1734326:3000003806220023,"36,606.92",Legal Aid civil representation
MOJ,LAA,26/06/19,Higher Crime,LEGAL AID FUND,KABIR P SONDHI,1735940:152669472,"36,630.12",Legal Aid higher crime
MOJ,LAA,26/06/19,Lower Crime,LEGAL AID FUND,BESWICKS SOLICITORS LLP,1734093:152721305,"36,677.95",Legal Aid lower crime
MOJ,LAA,26/06/19,Lower Crime,LEGAL AID FUND,THE JOHNSON PARTNERSHIP,1734411:152720797,"36,724.73",Legal Aid lower crime
MOJ,LAA,26/06/19,Lower Crime,LEGAL AID FUND,HARRIS SOLICITORS LTD,1737622:152721425,"36,737.34",Legal Aid lower crime
MOJ,LAA,26/06/19,Lower Crime,LEGAL AID FUND,EBR ATTRIDGE LLP,1737405:152720894,"36,746.74",Legal Aid lower crime
MOJ,LAA,26/06/19,Lower Crime,LEGAL AID FUND,CHURCHERS SOLICITORS,1734726:152721215,"36,767.89",Legal Aid lower crime
MOJ,LAA,26/06/19,Lower Crime,LEGAL AID FUND,POWELL SPENCER AND PARTNERS,1736760:152720432,"36,900.00",Legal Aid lower crime
MOJ,LAA,26/06/19,Lower Crime,LEGAL AID FUND,DE MAIDS SOLICITORS & ADVOCATES,1736901:152710466,"37,000.00",Legal Aid lower crime
MOJ,LAA,26/06/19,Lower Crime,LEGAL AID FUND,HILL TWINE,1735935:152721524,"37,005.14",Legal Aid lower crime
MOJ,LAA,26/06/19,Higher Crime,LEGAL AID FUND,DJMS SOLICITORS LTD,1737453:152696114,"37,183.06",Legal Aid higher crime
MOJ,LAA,26/06/19,Lower Crime,LEGAL AID FUND,ROBERT LIZAR,1736849:152721176,"37,320.01",Legal Aid lower crime
MOJ,LAA,26/06/19,Lower Crime,LEGAL AID FUND,CITY LAW CHAMBERS LTD,1737563:152720836,"37,510.49",Legal Aid lower crime
MOJ,LAA,26/06/19,Lower Crime,LEGAL AID FUND,THE JOHNSON PARTNERSHIP,1734839:152721353,"37,519.12",Legal Aid lower crime
MOJ,LAA,26/06/19,Lower Crime,LEGAL AID FUND,HINE SOLICITORS,1737631:152721408,"37,660.54",Legal Aid lower crime
MOJ,LAA,26/06/19,Civil Representation,LEGAL AID FUND,JONATHAN D TAYLOR,1735984:3000001186860044,"37,670.40",Legal Aid civil representation
MOJ,LAA,26/06/19,Higher Crime,LEGAL AID FUND,DAVID P SPENS QC,1735752:152686876,"37,800.00",Legal Aid higher crime
MOJ,LAA,26/06/19,Lower Crime,LEGAL AID FUND,MICHAEL CARROLL & CO,1734545:152720473,"37,800.00",Legal Aid lower crime
MOJ,LAA,26/06/19,Lower Crime,LEGAL AID FUND,HEALEY COLBON,1737571:152720835,"37,833.13",Legal Aid lower crime
MOJ,LAA,26/06/19,Legal Help,LEGAL AID FUND,HODGE JONES & ALLEN SOLICITORS LTD,1736764:152719577,"37,991.75",Legal Aid legal help
MOJ,LAA,26/06/19,Legal Help,LEGAL AID FUND,SUTOVIC & HARTIGAN,1734017:152719122,"38,000.00",Legal Aid legal help
MOJ,LAA,26/06/19,Civil Representation,LEGAL AID FUND,ALISON BALL QC,1735265:3000004206220028,"38,206.14",Legal Aid civil representation
MOJ,LAA,26/06/19,Higher Crime,LEGAL AID FUND,PAUL K LEWIS QC,1738065:152677721,"38,220.00",Legal Aid higher crime
MOJ,LAA,26/06/19,Lower Crime,LEGAL AID FUND,BREYDONS SOLICITORS LTD,1736063:152721415,"38,297.54",Legal Aid lower crime
MOJ,LAA,26/06/19,Lower Crime,LEGAL AID FUND,HPJV SOLICITORS,1734113:152720729,"38,332.92",Legal Aid lower crime
MOJ,LAA,26/06/19,Lower Crime,LEGAL AID FUND,LLOYDS PR SOLICITORS,1737572:152720825,"38,350.97",Legal Aid lower crime
MOJ,LAA,26/06/19,Lower Crime,LEGAL AID FUND,LLOYDS PR SOLICITORS,1737389:152720820,"38,482.99",Legal Aid lower crime
MOJ,LAA,26/06/19,Civil Representation,LEGAL AID FUND,DARREN F HOWE QC,1738070:3000002163930034,"38,496.72",Legal Aid civil representation
MOJ,LAA,26/06/19,Lower Crime,LEGAL AID FUND,GOMER WILLIAMS,1736810:152720741,"38,665.41",Legal Aid lower crime
MOJ,LAA,26/06/19,Legal Help,LEGAL AID FUND,THOMPSON & CO SOLICITORS LTD,1734195:152719111,"38,700.00",Legal Aid legal help
MOJ,LAA,26/06/19,Lower Crime,LEGAL AID FUND,METCALFE COPEMAN & PETTEFAR,1734393:152720419,"38,700.00",Legal Aid lower crime
MOJ,LAA,26/06/19,Legal Help,LEGAL AID FUND,PARKER RHODES HICKMOTTS,1734251:152719453,"39,019.35",Legal Aid legal help
MOJ,LAA,26/06/19,Civil Representation,LEGAL AID FUND,SWITALSKI'S SOLICITORS LTD,1735731:3000002155720016,"39,134.62",Legal Aid civil representation
MOJ,LAA,26/06/19,Legal Help,LEGAL AID FUND,FADIGA & CO LTD,1734196:152719538,"39,201.93",Legal Aid legal help
MOJ,LAA,26/06/19,Civil Representation,LEGAL AID FUND,BLACKFORDS LLP,1736644:3000001442550023,"39,207.92",Legal Aid civil representation
MOJ,LAA,26/06/19,Legal Help,LEGAL AID FUND,OSBORNES SOLICITORS LLP,1736657:152719109,"39,300.00",Legal Aid legal help
MOJ,LAA,26/06/19,Civil Representation,LEGAL AID FUND,TARYN J LEE QC,1738244:3000004639290009,"39,430.80",Legal Aid civil representation
MOJ,LAA,26/06/19,Lower Crime,LEGAL AID FUND,HOWELLS LLP,1734246:152720520,"39,500.00",Legal Aid lower crime
MOJ,LAA,26/06/19,Civil Representation,LEGAL AID FUND,KATIE PHILLIPS,1738012:3000003110610022,"39,572.56",Legal Aid civil representation
MOJ,LAA,26/06/19,Legal Help,LEGAL AID FUND,LEGAL JUSTICE SOLICITORS,1735916:152720072,"39,642.96",Legal Aid legal help
MOJ,LAA,26/06/19,Civil Representation,LEGAL AID FUND,HOWARD & CO,1734360:152673733,"39,793.75",Legal Aid civil representation
MOJ,LAA,26/06/19,Higher Crime,LEGAL AID FUND,MINKA BRAUN,1735046:152724831,"39,798.00",Legal Aid higher crime
MOJ,LAA,26/06/19,Legal Help,LEGAL AID FUND,HALLIDAY REEVES LAW FIRM,1737615:152719900,"40,112.47",Legal Aid legal help
MOJ,LAA,26/06/19,Lower Crime,LEGAL AID FUND,BURTON COPELAND LLP,1737116:152721175,"40,314.50",Legal Aid lower crime
MOJ,LAA,26/06/19,Lower Crime,LEGAL AID FUND,PURE LAW CRIMINAL DEFENCE,1739057:152721635,"40,557.86",Legal Aid lower crime
MOJ,LAA,26/06/19,Higher Crime,LEGAL AID FUND,HE LAW LTD,1737642:152669618,"40,570.56",Legal Aid higher crime
MOJ,LAA,26/06/19,Civil Representation,LEGAL AID FUND,GRIFFITHS ROBERTSON,1734378:3000002152670022,"40,594.50",Legal Aid civil representation
MOJ,LAA,26/06/19,Legal Help,LEGAL AID FUND,WOLTON & CO,1734664:152719274,"40,669.39",Legal Aid legal help
MOJ,LAA,26/06/19,Lower Crime,LEGAL AID FUND,HINE SOLICITORS,1736202:152721707,"40,865.07",Legal Aid lower crime
MOJ,LAA,26/06/19,Legal Help,LEGAL AID FUND,ELDER RAHIMI LIMITED,1737208:152719599,"40,981.44",Legal Aid legal help
MOJ,LAA,26/06/19,Lower Crime,LEGAL AID FUND,MPR SOLICITORS LLP,1737195:152720474,"41,000.00",Legal Aid lower crime
MOJ,LAA,26/06/19,Lower Crime,LEGAL AID FUND,LESLIE FRANKS SOLICITORS,1734786:152720960,"41,091.20",Legal Aid lower crime
MOJ,LAA,26/06/19,Legal Help,LEGAL AID FUND,PETER EDWARDS LAW LTD,1737236:152709794,"41,200.00",Legal Aid legal help
MOJ,LAA,26/06/19,Lower Crime,LEGAL AID FUND,THE JOHNSON PARTNERSHIP,1734412:152720798,"41,243.77",Legal Aid lower crime
MOJ,LAA,26/06/19,Higher Crime,LEGAL AID FUND,JSP LAW LTD,1738865:152669983,"41,359.42",Legal Aid higher crime
MOJ,LAA,26/06/19,Civil Representation,LEGAL AID FUND,SAM MOMTAZ,1738588:3000002649980004,"41,459.28",Legal Aid civil representation
MOJ,LAA,26/06/19,Lower Crime,LEGAL AID FUND,WILLIAMSONS SOLICITORS LTD,1736934:152720542,"41,600.00",Legal Aid lower crime
MOJ,LAA,26/06/19,Legal Help,LEGAL AID FUND,CJCH SOLICITORS,1736069:152720173,"41,619.41",Legal Aid legal help
MOJ,LAA,26/06/19,Higher Crime,LEGAL AID FUND,JAMES M HILL,1735087:152686800,"42,000.00",Legal Aid higher crime
MOJ,LAA,26/06/19,Lower Crime,LEGAL AID FUND,TUCKERS SOLICITORS LLP,1737588:152720471,"42,000.00",Legal Aid lower crime
MOJ,LAA,26/06/19,Lower Crime,LEGAL AID FUND,WALKER LAW LTD,1736351:152721842,"42,095.27",Legal Aid lower crime
MOJ,LAA,26/06/19,Civil Representation,LEGAL AID FUND,WARD HADAWAY,1734262:3000002879530020,"42,269.69",Legal Aid civil representation
MOJ,LAA,26/06/19,Lower Crime,LEGAL AID FUND,TAYLOR HALDANE BARLEX LLP,1738889:152721616,"42,324.73",Legal Aid lower crime
MOJ,LAA,26/06/19,Lower Crime,LEGAL AID FUND,LAWRENCE & CO SOLICITORS CDS LLP,1737074:152720468,"42,500.00",Legal Aid lower crime
MOJ,LAA,26/06/19,Civil Representation,LEGAL AID FUND,TARYN J LEE QC,1738244:3000003680890026,"42,544.56",Legal Aid civil representation
MOJ,LAA,26/06/19,Lower Crime,LEGAL AID FUND,REEDS SOLICITORS LLP,1738743:152722336,"42,840.50",Legal Aid lower crime
MOJ,LAA,26/06/19,Civil Representation,LEGAL AID FUND,CHRISTOPHER P BRAMWELL,1737771:3000001907550060,"43,034.69",Legal Aid civil representation
MOJ,LAA,26/06/19,Lower Crime,LEGAL AID FUND,DUNCAN LEWIS SOLICITORS  LTD,1737225:152720456,"43,200.00",Legal Aid lower crime
MOJ,LAA,26/06/19,Lower Crime,LEGAL AID FUND,VHS FLETCHERS,1734337:152720395,"43,200.00",Legal Aid lower crime
MOJ,LAA,26/06/19,Lower Crime,LEGAL AID FUND,IRVINE THANVI NATAS SOLICITORS,1737363:152720431,"43,500.00",Legal Aid lower crime
MOJ,LAA,26/06/19,Legal Help,LEGAL AID FUND,CMHT SOLICITORS LLP,1734085:152719240,"44,143.99",Legal Aid legal help
MOJ,LAA,26/06/19,Lower Crime,LEGAL AID FUND,ORACLE SOLICITORS & CONSULTANTS LTD,1734556:152720967,"44,352.62",Legal Aid lower crime
MOJ,LAA,26/06/19,Higher Crime,LEGAL AID FUND,CHOPRA & GILL SOLICITORS,1739046:152677427,"44,374.40",Legal Aid higher crime
MOJ,LAA,26/06/19,Higher Crime,LEGAL AID FUND,CARSON KAYE SOLICITORS,1738822:152695901,"44,420.18",Legal Aid higher crime
MOJ,LAA,26/06/19,Lower Crime,LEGAL AID FUND,OLLIERS SOLICITORS LTD,1737292:152721140,"44,482.69",Legal Aid lower crime
MOJ,LAA,26/06/19,Lower Crime,LEGAL AID FUND,HARRIS CUFFARO & NICHOLS,1734153:152720412,"44,500.00",Legal Aid lower crime
MOJ,LAA,26/06/19,Higher Crime,LEGAL AID FUND,PAUL S BOGAN,1735249:152678408,"44,760.00",Legal Aid higher crime
MOJ,LAA,26/06/19,Lower Crime,LEGAL AID FUND,ONE LEGAL SERVICES LTD,1736223:152721736,"44,784.24",Legal Aid lower crime
MOJ,LAA,26/06/19,Lower Crime,LEGAL AID FUND,RENSHAW DERRICK & CO,1733959:152721236,"44,800.37",Legal Aid lower crime
MOJ,LAA,26/06/19,Lower Crime,LEGAL AID FUND,LEWIS RODGERS LTD,1738498:152721892,"44,931.17",Legal Aid lower crime
MOJ,LAA,26/06/19,Legal Help,LEGAL AID FUND,BRIGHTON HOUSING TRUST,1734959:152719908,"44,979.45",Legal Aid legal help
MOJ,LAA,26/06/19,Higher Crime,LEGAL AID FUND,SPERRIN  LAW LTD,1739036:152714455,"44,987.57",Legal Aid higher crime
MOJ,LAA,26/06/19,Lower Crime,LEGAL AID FUND,DEVONALD GRIFFITHS JOHN,1737139:152720377,"45,000.00",Legal Aid lower crime
MOJ,LAA,26/06/19,Lower Crime,LEGAL AID FUND,LANSBURY WORTHINGTON LTD,1734157:152720422,"45,000.00",Legal Aid lower crime
MOJ,LAA,26/06/19,Legal Help,LEGAL AID FUND,GLEDHILL GILL SOLICITORS,1734025:152719283,"45,167.47",Legal Aid legal help
MOJ,LAA,26/06/19,Lower Crime,LEGAL AID FUND,H P GOWER SOLICITORS,1734799:152721448,"45,463.73",Legal Aid lower crime
MOJ,LAA,26/06/19,Higher Crime,LEGAL AID FUND,CARSON KAYE SOLICITORS,1738822:152678395,"45,554.93",Legal Aid higher crime
MOJ,LAA,26/06/19,Lower Crime,LEGAL AID FUND,USMANI KING LTD,1734532:152720830,"45,636.51",Legal Aid lower crime
MOJ,LAA,26/06/19,Lower Crime,LEGAL AID FUND,JSP LAW LTD,1738865:152721545,"45,686.31",Legal Aid lower crime
MOJ,LAA,26/06/19,Higher Crime,LEGAL AID FUND,MARCUS J HARRY,1735699:152724829,"45,960.00",Legal Aid higher crime
MOJ,LAA,26/06/19,Lower Crime,LEGAL AID FUND,TUCKERS SOLICITORS LLP,1738733:152720696,"46,300.00",Legal Aid lower crime
MOJ,LAA,26/06/19,Lower Crime,LEGAL AID FUND,BLACKWELLS,1734643:152720534,"46,400.00",Legal Aid lower crime
MOJ,LAA,26/06/19,Lower Crime,LEGAL AID FUND,G T STEWART LTD,1734855:152721405,"46,474.21",Legal Aid lower crime
MOJ,LAA,26/06/19,Legal Help,LEGAL AID FUND,BURKE NIAZI  LTD,1736833:152711099,"46,600.00",Legal Aid legal help
MOJ,LAA,26/06/19,Lower Crime,LEGAL AID FUND,WANNOPS LLP,1737649:152721491,"46,716.93",Legal Aid lower crime
MOJ,LAA,26/06/19,Lower Crime,LEGAL AID FUND,BLACKFORDS LLP,1736654:152720902,"46,753.54",Legal Aid lower crime
MOJ,LAA,26/06/19,Lower Crime,LEGAL AID FUND,SUNDIP MURRIA SOLICITORS,1734624:152720674,"47,400.00",Legal Aid lower crime
MOJ,LAA,26/06/19,Civil Representation,LEGAL AID FUND,GEMMA M TAYLOR,1738036:3000003227440020,"47,483.64",Legal Aid civil representation
MOJ,LAA,26/06/19,Lower Crime,LEGAL AID FUND,OLD BAILEY SOLICITORS LTD,1737625:152721406,"47,729.78",Legal Aid lower crime
MOJ,LAA,26/06/19,Legal Help,LEGAL AID FUND,BARNES HARRILD & DYER,1734042:152719546,"47,918.75",Legal Aid legal help
MOJ,LAA,26/06/19,Lower Crime,LEGAL AID FUND,I B B SOLICITORS,1734615:152720444,"48,600.00",Legal Aid lower crime
MOJ,LAA,26/06/19,Higher Crime,LEGAL AID FUND,POTTER DERBY LTD,1736832:152686436,"49,610.06",Legal Aid higher crime
MOJ,LAA,26/06/19,Higher Crime,LEGAL AID FUND,DARTON LAW LIMITED,1737604:152686767,"49,729.07",Legal Aid higher crime
MOJ,LAA,26/06/19,Lower Crime,LEGAL AID FUND,JACKSON LEES GROUP LTD,1735650:152721506,"49,971.65",Legal Aid lower crime
MOJ,LAA,26/06/19,Lower Crime,LEGAL AID FUND,FORBES SOLICITORS,1734433:152720563,"50,000.00",Legal Aid lower crime
MOJ,LAA,26/06/19,Lower Crime,LEGAL AID FUND,HENNESSY & HAMMUDI,1734731:152720620,"50,000.00",Legal Aid lower crime
MOJ,LAA,26/06/19,Legal Help,LEGAL AID FUND,LEI DAT & BAIG SOLICITORS LTD,1734972:152719926,"50,162.98",Legal Aid legal help
MOJ,LAA,26/06/19,Lower Crime,LEGAL AID FUND,MARTIN MURRAY & ASSOCIATES,1736707:152720905,"50,358.51",Legal Aid lower crime
MOJ,LAA,26/06/19,Lower Crime,LEGAL AID FUND,CROWE HUMBLE WESENCRAFT,1734598:152720505,"50,700.00",Legal Aid lower crime
MOJ,LAA,26/06/19,Lower Crime,LEGAL AID FUND,WATSON WOODHOUSE LTD,1736981:152720491,"50,700.00",Legal Aid lower crime
MOJ,LAA,26/06/19,Lower Crime,LEGAL AID FUND,STEVENS SOLICITORS,1734184:152720652,"50,800.00",Legal Aid lower crime
MOJ,LAA,26/06/19,Legal Help,LEGAL AID FUND,DONOVAN NEWTON SOLICITORS,1734769:152719716,"50,825.83",Legal Aid legal help
MOJ,LAA,26/06/19,Lower Crime,LEGAL AID FUND,G T STEWART LTD,1737483:152720972,"51,966.59",Legal Aid lower crime
MOJ,LAA,26/06/19,Lower Crime,LEGAL AID FUND,REEDS SOLICITORS LLP,1739028:152722124,"52,105.17",Legal Aid lower crime
MOJ,LAA,26/06/19,Higher Crime,LEGAL AID FUND,FOOTNER & EWING LLP,1736211:152669080,"52,233.73",Legal Aid higher crime
MOJ,LAA,26/06/19,Higher Crime,LEGAL AID FUND,SALHAN & CO LTD,1737352:152677799,"52,704.13",Legal Aid higher crime
MOJ,LAA,26/06/19,Lower Crime,LEGAL AID FUND,SMITH PARTNERSHIP,1734654:152720400,"53,400.00",Legal Aid lower crime
MOJ,LAA,26/06/19,Civil Representation,LEGAL AID FUND,PAUL M STOREY QC,1738298:3000002116040045,"53,625.60",Legal Aid civil representation
MOJ,LAA,26/06/19,Lower Crime,LEGAL AID FUND,NOBLE SOLICITORS,1737648:152721370,"54,391.68",Legal Aid lower crime
MOJ,LAA,26/06/19,Higher Crime,LEGAL AID FUND,PATRICK W DUFFY,1735255:152669890,"54,586.51",Legal Aid higher crime
MOJ,LAA,26/06/19,Higher Crime,LEGAL AID FUND,KEVIN J HEGARTY QC,1737993:152678085,"54,900.00",Legal Aid higher crime
MOJ,LAA,26/06/19,Lower Crime,LEGAL AID FUND,REECE THOMAS WATSON LTD,1738835:152721588,"56,541.66",Legal Aid lower crime
MOJ,LAA,26/06/19,Lower Crime,LEGAL AID FUND,REEDS SOLICITORS LLP,1737176:152722043,"56,966.93",Legal Aid lower crime
MOJ,LAA,26/06/19,Lower Crime,LEGAL AID FUND,HOWARD & BYRNE SOLICITORS,1734668:152720531,"57,000.00",Legal Aid lower crime
MOJ,LAA,26/06/19,Higher Crime,LEGAL AID FUND,M & N SOLICITORS,1734555:152677705,"57,203.05",Legal Aid higher crime
MOJ,LAA,26/06/19,Lower Crime,LEGAL AID FUND,J D SOLICITORS,1739052:152721752,"57,445.11",Legal Aid lower crime
MOJ,LAA,26/06/19,Lower Crime,LEGAL AID FUND,SANSBURY DOUGLAS,1734837:152720685,"57,500.00",Legal Aid lower crime
MOJ,LAA,26/06/19,Lower Crime,LEGAL AID FUND,T V EDWARDS LLP,1734156:152720457,"58,000.00",Legal Aid lower crime
MOJ,LAA,26/06/19,Civil Representation,LEGAL AID FUND,NKUMBE EKANEY QC,1735257:3000001373550027,"58,849.19",Legal Aid civil representation
MOJ,LAA,26/06/19,Lower Crime,LEGAL AID FUND,STEVENS SOLICITORS,1734183:152720651,"59,000.00",Legal Aid lower crime
MOJ,LAA,26/06/19,Lower Crime,LEGAL AID FUND,WESSEX SOLICITORS CHAMBERS,1737523:152720683,"59,000.00",Legal Aid lower crime
MOJ,LAA,26/06/19,Legal Help,LEGAL AID FUND,DUNCAN LEWIS SOLICITORS  LTD,1738776:152719198,"59,300.00",Legal Aid legal help
MOJ,LAA,26/06/19,Lower Crime,LEGAL AID FUND,GAMMON PIERCY & GAIGER LLP,1736643:152721210,"59,356.47",Legal Aid lower crime
MOJ,LAA,26/06/19,Lower Crime,LEGAL AID FUND,GWB HARTHILLS LLP,1734646:152721068,"59,859.95",Legal Aid lower crime
MOJ,LAA,26/06/19,Legal Help,LEGAL AID FUND,PARAGON LAW LTD,1734703:152719177,"60,000.00",Legal Aid legal help
MOJ,LAA,26/06/19,Legal Help,LEGAL AID FUND,T V EDWARDS LLP,1734156:152719108,"60,000.00",Legal Aid legal help
MOJ,LAA,26/06/19,Lower Crime,LEGAL AID FUND,WELLS BURCOMBE LLP,1737683:152721419,"60,312.61",Legal Aid lower crime
MOJ,LAA,26/06/19,Higher Crime,LEGAL AID FUND,CHRISTOPHER TEHRANI QC,1738293:152686569,"60,420.00",Legal Aid higher crime
MOJ,LAA,26/06/19,Civil Representation,LEGAL AID FUND,PAMELA SCRIVEN QC,1735749:3000002083060021,"62,714.64",Legal Aid civil representation
MOJ,LAA,26/06/19,Lower Crime,LEGAL AID FUND,JERMAN SAMUELS & PEARSON LLP,1739088:152720704,"63,000.00",Legal Aid lower crime
MOJ,LAA,26/06/19,Lower Crime,LEGAL AID FUND,SONN MACMILLAN WALKER LTD,1736704:152720423,"63,800.00",Legal Aid lower crime
MOJ,LAA,26/06/19,Legal Help,LEGAL AID FUND,LAWANA & CO,1737532:152719105,"64,000.00",Legal Aid legal help
MOJ,LAA,26/06/19,Legal Help,LEGAL AID FUND,HOWE & CO,1734644:152719593,"64,558.85",Legal Aid legal help
MOJ,LAA,26/06/19,Legal Help,LEGAL AID FUND,APPLEMAN LEGAL,1736049:152720169,"64,964.98",Legal Aid legal help
MOJ,LAA,26/06/19,Lower Crime,LEGAL AID FUND,BOND JOSEPH,1734542:152721195,"67,491.34",Legal Aid lower crime
MOJ,LAA,26/06/19,Lower Crime,LEGAL AID FUND,ABV SOLICITORS,1737430:152720447,"67,600.00",Legal Aid lower crime
MOJ,LAA,26/06/19,Legal Help,LEGAL AID FUND,BISON SOLICITORS LTD,1736039:152711104,"68,001.14",Legal Aid legal help
MOJ,LAA,26/06/19,Lower Crime,LEGAL AID FUND,ANGELA PORTER SOLICITORS,1734626:152721231,"68,031.23",Legal Aid lower crime
MOJ,LAA,26/06/19,Higher Crime,LEGAL AID FUND,SAMANTHA RIGGS,1735044:152724904,"69,320.00",Legal Aid higher crime
MOJ,LAA,26/06/19,Higher Crime,LEGAL AID FUND,REEDS SOLICITORS LLP,1739030:152714055,"69,336.66",Legal Aid higher crime
MOJ,LAA,26/06/19,Legal Help,LEGAL AID FUND,DUNCAN LEWIS SOLICITORS  LTD,1737225:152711097,"71,400.00",Legal Aid legal help
MOJ,LAA,26/06/19,Legal Help,LEGAL AID FUND,CARTWRIGHT KING LTD,1737380:152719747,"71,840.92",Legal Aid legal help
MOJ,LAA,26/06/19,Lower Crime,LEGAL AID FUND,STUART MILLER SOLICITORS LTD,1736973:152720957,"72,734.28",Legal Aid lower crime
MOJ,LAA,26/06/19,Lower Crime,LEGAL AID FUND,REEDS SOLICITORS LLP,1739024:152722329,"73,981.08",Legal Aid lower crime
MOJ,LAA,26/06/19,Higher Crime,LEGAL AID FUND,CENTURION LAW LTD,1736162:152696396,"74,979.26",Legal Aid higher crime
MOJ,LAA,26/06/19,Legal Help,LEGAL AID FUND,BARNES HARRILD & DYER,1738698:152720025,"76,123.92",Legal Aid legal help
MOJ,LAA,26/06/19,Higher Crime,LEGAL AID FUND,H P GOWER SOLICITORS,1734799:152696146,"79,318.04",Legal Aid higher crime
MOJ,LAA,26/06/19,Lower Crime,LEGAL AID FUND,RMNJ SOLICITORS ***,1737187:152720994,"79,443.80",Legal Aid lower crime
MOJ,LAA,26/06/19,Legal Help,LEGAL AID FUND,GUILE NICHOLAS-INC DONALD GALBRAITH & CO,1734735:152719116,"80,000.00",Legal Aid legal help
MOJ,LAA,26/06/19,Lower Crime,LEGAL AID FUND,WELLS BURCOMBE LLP,1737583:152720824,"80,491.66",Legal Aid lower crime
MOJ,LAA,26/06/19,Lower Crime,LEGAL AID FUND,HODGE JONES & ALLEN SOLICITORS LTD,1736764:152720955,"80,952.14",Legal Aid lower crime
MOJ,LAA,26/06/19,Legal Help,LEGAL AID FUND,ABBOTSTONE LAW LLP,1736044:152720165,"81,008.67",Legal Aid legal help
MOJ,LAA,26/06/19,Lower Crime,LEGAL AID FUND,J D SPICER ZEB,1736761:152720914,"81,177.82",Legal Aid lower crime
MOJ,LAA,26/06/19,Higher Crime,LEGAL AID FUND,HARRIS SOLICITORS LTD,1737622:152686555,"82,706.75",Legal Aid higher crime
MOJ,LAA,26/06/19,Higher Crime,LEGAL AID FUND,STEPHENSONS SOLICITORS LLP,1736845:152695958,"83,934.63",Legal Aid higher crime
MOJ,LAA,26/06/19,Higher Crime,LEGAL AID FUND,FREEMANS SOLICITORS,1734035:152714534,"85,855.08",Legal Aid higher crime
MOJ,LAA,26/06/19,Higher Crime,LEGAL AID FUND,SVS SOLICITORS,1737560:152686728,"86,622.74",Legal Aid higher crime
MOJ,LAA,26/06/19,Higher Crime,LEGAL AID FUND,STOKOE PARTNERSHIP,1736669:152678012,"87,181.96",Legal Aid higher crime
MOJ,LAA,26/06/19,Legal Help,LEGAL AID FUND,WILSON SOLICITORS LLP,1734476:152719519,"88,611.76",Legal Aid legal help
MOJ,LAA,26/06/19,Higher Crime,LEGAL AID FUND,COBLEYS SOLICITORS LTD,1734578:152714951,"89,975.11",Legal Aid higher crime
MOJ,LAA,26/06/19,Higher Crime,LEGAL AID FUND,FORESTERS SOLICITORS,1734765:152714110,"89,975.11",Legal Aid higher crime
MOJ,LAA,26/06/19,Higher Crime,LEGAL AID FUND,HARRIS CUFFARO & NICHOLS,1734153:152714388,"89,975.11",Legal Aid higher crime
MOJ,LAA,26/06/19,Higher Crime,LEGAL AID FUND,HARRIS SOLICITORS LTD,1737622:152686638,"89,975.11",Legal Aid higher crime
MOJ,LAA,26/06/19,Higher Crime,LEGAL AID FUND,HOGAN BROWN SOLICITORS,1734637:152714430,"89,975.11",Legal Aid higher crime
MOJ,LAA,26/06/19,Higher Crime,LEGAL AID FUND,IRVINE THANVI NATAS SOLICITORS,1737363:152669606,"89,975.11",Legal Aid higher crime
MOJ,LAA,26/06/19,Higher Crime,LEGAL AID FUND,LIBERTY LAW SOLICITORS LTD,1734780:152696595,"89,975.11",Legal Aid higher crime
MOJ,LAA,26/06/19,Higher Crime,LEGAL AID FUND,ZMS LEGAL LTD TA ZMS SOLICITORS,1734741:152677010,"89,975.11",Legal Aid higher crime
MOJ,LAA,26/06/19,Lower Crime,LEGAL AID FUND,PURCELL PARKER LTD,1734467:152720661,"90,000.00",Legal Aid lower crime
MOJ,LAA,26/06/19,EXP - PURCHASE OF GOODS/SERVICES - HOSTING - Hosting,Business Systems Mgmt,CAPGEMINI UK PLC,2600110209561,"90,033.00",Information technology costs
MOJ,LAA,26/06/19,Lower Crime,LEGAL AID FUND,BHATIA BEST LTD,1737037:152720384,"90,100.00",Legal Aid lower crime
MOJ,LAA,26/06/19,Legal Help,LEGAL AID FUND,BURKE NIAZI  LTD,1736833:152711098,"92,000.00",Legal Aid legal help
MOJ,LAA,26/06/19,Legal Help,LEGAL AID FUND,JACKSON LEES GROUP LTD,1735650:152711100,"92,000.00",Legal Aid legal help
MOJ,LAA,26/06/19,Legal Help,LEGAL AID FUND,BISON SOLICITORS LTD,1736039:152711103,"93,000.00",Legal Aid legal help
MOJ,LAA,26/06/19,Legal Help,LEGAL AID FUND,DUNCAN LEWIS SOLICITORS  LTD,1737224:152710934,"94,000.00",Legal Aid legal help
MOJ,LAA,26/06/19,Legal Help,LEGAL AID FUND,DUNCAN LEWIS SOLICITORS  LTD,1737224:152710933,"95,000.00",Legal Aid legal help
MOJ,LAA,26/06/19,Legal Help,LEGAL AID FUND,DUNCAN LEWIS SOLICITORS  LTD,1737224:152710932,"96,000.00",Legal Aid legal help
MOJ,LAA,26/06/19,Legal Help,LEGAL AID FUND,DUNCAN LEWIS SOLICITORS  LTD,1737224:152710931,"97,000.00",Legal Aid legal help
MOJ,LAA,26/06/19,Higher Crime,LEGAL AID FUND,CARTWRIGHT KING LTD,1737598:152722410,"97,252.00",Legal Aid higher crime
MOJ,LAA,26/06/19,Legal Help,LEGAL AID FUND,DUNCAN LEWIS SOLICITORS  LTD,1737225:152711026,"98,000.00",Legal Aid legal help
MOJ,LAA,26/06/19,Legal Help,LEGAL AID FUND,FOUNTAIN SOLICITORS LTD,1734736:152719052,"98,000.00",Legal Aid legal help
MOJ,LAA,26/06/19,Higher Crime,LEGAL AID FUND,JMW SOLICITORS LLP,1736840:152725048,"98,263.00",Legal Aid higher crime
MOJ,LAA,26/06/19,Legal Help,LEGAL AID FUND,DUNCAN LEWIS SOLICITORS  LTD,1737225:152711025,"99,000.00",Legal Aid legal help
MOJ,LAA,26/06/19,Lower Crime,LEGAL AID FUND,TUCKERS SOLICITORS LLP,1736976:152720582,"105,000.00",Legal Aid lower crime
MOJ,LAA,26/06/19,Higher Crime,LEGAL AID FUND,HARRIS SOLICITORS LTD,1737622:152696412,"105,709.42",Legal Aid higher crime
MOJ,LAA,26/06/19,Higher Crime,LEGAL AID FUND,ABBEY SOLICITORS,1734701:152714524,"105,857.75",Legal Aid higher crime
MOJ,LAA,26/06/19,Higher Crime,LEGAL AID FUND,AM INTERNATIONAL SOLICITORS LTD,1739067:152686540,"105,857.75",Legal Aid higher crime
MOJ,LAA,26/06/19,Higher Crime,LEGAL AID FUND,BLACKFORDS LLP,1736654:152686640,"105,857.75",Legal Aid higher crime
MOJ,LAA,26/06/19,Higher Crime,LEGAL AID FUND,HARRIS SOLICITORS LTD,1737622:152677604,"105,857.75",Legal Aid higher crime
MOJ,LAA,26/06/19,Higher Crime,LEGAL AID FUND,KHAN SOLICITORS LTD,1737019:152687004,"105,857.75",Legal Aid higher crime
MOJ,LAA,26/06/19,Higher Crime,LEGAL AID FUND,COBLEYS SOLICITORS LTD,1738881:152687010,"107,574.07",Legal Aid higher crime
MOJ,LAA,26/06/19,Higher Crime,LEGAL AID FUND,MCGRATH & CO SOLICITORS,1734677:152687300,"107,574.07",Legal Aid higher crime
MOJ,LAA,26/06/19,Higher Crime,LEGAL AID FUND,SADIQUE & UDDIN SOLICITORS LTD,1736178:152677645,"107,574.07",Legal Aid higher crime
MOJ,LAA,26/06/19,Higher Crime,LEGAL AID FUND,ALEXANDER BENNETT,1738781:152686286,"107,970.13",Legal Aid higher crime
MOJ,LAA,26/06/19,Higher Crime,LEGAL AID FUND,BARK & CO,1736963:152678616,"107,970.13",Legal Aid higher crime
MOJ,LAA,26/06/19,Lower Crime,LEGAL AID FUND,INSTALAW,1738826:152721585,"111,319.86",Legal Aid lower crime
MOJ,LAA,26/06/19,Lower Crime,LEGAL AID FUND,SWAIN & CO SOLICITORS,1737365:152720610,"129,700.00",Legal Aid lower crime
MOJ,LAA,26/06/19,Lower Crime,LEGAL AID FUND,TUCKERS SOLICITORS LLP,1736975:152720467,"140,000.00",Legal Aid lower crime
MOJ,LAA,26/06/19,Lower Crime,LEGAL AID FUND,CARTER OSBORNE LTD,1734399:152720796,"140,506.46",Legal Aid lower crime
MOJ,LAA,26/06/19,Lower Crime,LEGAL AID FUND,BIRDS SOLICITORS LTD,1734665:152720437,"153,700.00",Legal Aid lower crime
MOJ,LAA,26/06/19,Lower Crime,LEGAL AID FUND,THE JOHNSON PARTNERSHIP,1734410:152720794,"166,685.95",Legal Aid lower crime
MOJ,LAA,26/06/19,Lower Crime,LEGAL AID FUND,CARRINGTONS SOLICITORS,1734791:152720800,"189,562.55",Legal Aid lower crime
MOJ,LAA,27/06/19,EXP - RENTALS UNDER NON-PFI OPERATING LEASES - BUILDINGS,Property Costs - Birmingham,RAILWAY PENSION NOMINEES CO JLL,LAA-SOP6-EXI-10561,"85,736.05",Rental under operating leases-Buildings
MOJ,LAA,28/06/19,EXP - PURCHASE OF GOODS/SERVICES - ACCOMMODATION & BLDNG MANAGEMENT - Property Service Charges,Property Costs - Liverpool,CUSHMAN & WAKEFIELD,54802,"25,404.26",Property service charges
MOJ,LAA,28/06/19,EXP - RENTALS UNDER NON-PFI OPERATING LEASES - BUILDINGS,Property Costs - Liverpool,CUSHMAN & WAKEFIELD,54802,"61,793.08",Rental under operating leases-Buildings
MOJ,LAA,28/06/19,EXP - PURCHASE OF GOODS/SERVICES - OTHER - Translation / Interpreting Services,Central Funds,THEBIGWORD INTERPRETING SERVICES LTD,90332668,"1,215,066.86",Translation / interpreter costs
